Workbook

Sheet Conversion (hidden)
A1: Product Family | B1: Type | C1: Application | D1: Nominal Capacity | E1: Cabinet Size | F1: Controls | G1: Unit Voltage | H1: Model Vintage | I1: Airflow Orientation | J1: Supply Blower/Size Type | K1: Supply Blower Options | L1: Supply Motor Size | M1: Supply Motor Type | N1: Cooling Coil | O1: Compressor Type | P1: Refrigerant Pressure Switch | Q1: Refrigeration Controls/Options | R1: Heating Type | S1: Electric Heating Capacity | T1: Gas Heating Capacity | U1: Heater Control | V1: Heating Gas Safety Controls | W1: Energy Recovery | X1: Energy Recovery Options | Y1: Ventilation | Z1: Exhaust Blower Size | AA1: Exhaust Blower Options | AB1: Exhaust Motor Size | AC1: Exhaust Motor Type | AD1: Corrosion Protection | AE1: Maintenance Options | AF1: Power Options | AG1: Control Options | AH1: Safety Controls | AI1: Pre-Filter | AJ1: Final Filter
A2: 1-2 | B2: 3 | C2: 4 | D2: 5-6-7 | E2: 8-9 | F2: 10 | G2: 11 | H2: 12 | I2: 13 | J2: 14-15 | K2: 16 | L2: 17 | M2: 18 | N2: 19 | O2: 20 | P2: 21 | Q2: 22-23 | R2: 24 | S2: 25 | T2: 26-27 | U2: 28 | V2: 29 | W2: 30 | X2: 31 | Y2: 32 | Z2: 33-34 | AA2: 35 | AB2: 36 | AC2: 37 | AD2: 38-39 | AE2: 40-41 | AF2: 42-43 | AG2: 44-45 | AH2: 46-47 | AI2: 48 | AJ2: 49
A3: =IF(B5&C5="62X","PR","") -> PR | B3: =IF(B5&C5="62X","O","") -> O | C3: =IF(B5&C5="62X","A","") -> A | D3: =12*E5 -> 240 | E3: =IF(VLOOKUP($G$5,$Q$10:$U$45,5,FALSE)="B",VLOOKUP($D$5,$E$10:$G$39,2,FALSE),VLOOKUP($D$5,$E$10:$G$39,3,FALSE))&INDEX($L$27:$O$31,MATCH(VLOOKUP(D5,$E$10:$F$39,2,FALSE),$K$27:$K$31,0),MATCH(VLOOKUP($K$5,$H$10:$I$41,2,FALSE),$L$26:$O$26,0)) -> D4 | F3: * | G3: =VLOOKUP($K$5,$H$10:$J$41,3,FALSE) -> 2 | H3: * | I3: * | J3: =VLOOKUP($M$5,$X$10:$AA$39,4,FALSE) -> BF | K3: * | L3: =VLOOKUP($I$5,$AB$10:$AE$26,4,FALSE) -> B | M3: * | N3: =VLOOKUP($H$5,$AF$10:$AI$39,3,FALSE) -> A | O3: * | P3: * | Q3: =VLOOKUP($H$5,$AF$10:$AI$39,4,FALSE) -> AL | R3: =VLOOKUP($G$5,$Q$10:$V$45,6,FALSE) -> B | S3: =VLOOKUP($G$5,$Q$10:$W$45,7,FALSE) -> 0 | T3: =VLOOKUP($G$5,$Q$10:$T$45,4,FALSE) -> 0 | U3: * | V3: * | W3: =VLOOKUP($F$5,$AK$10:$AM$34,3,FALSE) -> E | X3: * | Y3: E | Z3: =VLOOKUP($O$5,$AS$10:$AV$40,4,FALSE) -> BF | AA3: * | AB3: =VLOOKUP($N$5,$AO$10:$AR$27,4,FALSE) -> B | AC3: * | AD3: ** | AE3: ** | AF3: ** | AG3: ** | AH3: ** | AI3: * | AJ3: 0
B4: 12 | C4: 3 | D4: 4 | E4: 56 | F4: 7 | G4: 8 | H4: 9 | I4: 10 | J4: 11 | K4: 12 | L4: 13 | M4: 14 | N4: 15 | O4: 16 | P4: 17 | Q4: 18
B5: =Sheet2!A4 -> 62 | C5: =Sheet2!B4 -> X | D5: =Sheet2!C4 -> D | E5: =Sheet2!D4 -> 20 | F5: =Sheet2!E4 -> E | G5: =Sheet2!F4 -> - | H5: =Sheet2!G4 -> A | I5: =Sheet2!H4 -> B | J5: =Sheet2!I4 -> - | K5: =Sheet2!J4 -> A | L5: =Sheet2!K4 -> F | M5: =Sheet2!L4 -> T | N5: =Sheet2!M4 -> B | O5: =Sheet2!N4 -> T | P5: =Sheet2!O4 -> - | Q5: =Sheet2!P4 -> -
T6: =CONCATENATE(TEXT(A3,"00"),B3,C3,TEXT(D3,"000"),TEXT(E3,"00"),F3,G3,H3,I3,TEXT(J3,"00"),K3,L3,M3,N3,O3,P3,TEXT(Q3,"00"),R3,S3,TEXT(T3,"00"),U3,V3,W3,X3,Y3,TEXT(Z3,"00"),AA3,AB3,AC3,AD3,AE3,AF3,AG3,AH3,AI3,AJ3) -> PROA240D4*2**BF*B*A**ALB000**E*EBF*B************0 | X6: =LEN(T6) -> 49
C9: Size (5,6) | E9: CABINET (4) | H9: Condenser (12) | J9: Voltage | Q9: Furnace | U9: Cabinet Trigger | V9: 24 | W9: 25 | X9: SUPPLY FAN | AB9: SUPPLY FAN MOTOR | AF9: EVAP AND RHSC | AK9: ECW | AO9: Exhaust FAN MOTOR | AS9: Exhaust Fan
C10: 03 | D10: 36 | E10: A | F10: A | G10: A | H10: A | I10: min | J10: 2 | Q10: - | T10: 0 | U10: B | V10: B | W10: 0 | X10: A | Y10: 280 mm | Z10: BI | AA10: CA | AB10: A | AC10: 1 | AD10: ODP | AE10: A | AF10: A | AG10: 4 | AH10: A | AI10: AL | AK10: - | AL10: 0 | AM10: 0 | AO10: - | AP10: 0 | AQ10: 0 | AR10: 0 | AS10: - | AT10: 0 | AU10: 0 | AV10: 0
C11: 04 | D11: 48 | E11: B | F11: B | G11: F | H11: B | I11: min | J11: 2 | Q11: A | R11: 75 | S11: Standard | T11: A1 | U11: B | V11: B | W11: 0 | X11: B | Y11: 315 mm | Z11: BI | AA11: CC | AB11: B | AC11: 1.5 | AD11: ODP | AE11: B | AF11: B | AG11: 4 | AH11: A | AI11: AM | AK11: A | AL11: 244 | AM11: A | AO11: A | AP11: 1 | AQ11: ODP | AR11: A | AS11: A | AT11: 280 mm | AU11: BI | AV11: CA
C12: 05 | D12: 60 | E12: C | F12: C | G12: G | H12: C | I12: low | J12: 2 | Q12: B | R12: 100 | S12: Standard | T12: B1 | U12: B | V12: B | W12: 0 | X12: C | Y12: 355 mm small | Z12: BI | AA12: CD | AB12: C | AC12: 2 | AD12: ODP | AE12: C | AF12: C | AG12: 4 | AH12: A | AI12: AL | AK12: B | AL12: 324 | AM12: B | AO12: B | AP12: 1.5 | AQ12: ODP | AR12: B | AS12: B | AT12: 315 mm | AU12: BI | AV12: CC
C13: 06 | D13: 72 | E13: D | F13: D | G13: H | H13: D | I13: low | J13: 2 | Q13: C | R13: 150 | S13: Standard | T13: C1 | U13: B | V13: B | W13: 0 | X13: D | Y13: 355 mm medium | Z13: BI | AA13: CE | AB13: D | AC13: 3 | AD13: ODP | AE13: D | AF13: D | AG13: 4 | AH13: A | AI13: AM | AK13: C | AL13: 364 | AM13: C | AO13: C | AP13: 2 | AQ13: ODP | AR13: C | AS13: C | AT13: 355 mm small | AU13: BI | AV13: CD
C14: 07 | D14: 84 | E14: F | F14: E | G14: J | H14: E | I14: medium | J14: 2 | Q14: D | R14: 200 | S14: Standard | T14: D1 | U14: B | V14: B | W14: 0 | X14: E | Y14: 355 mm large | Z14: BI | AA14: CF | AB14: E | AC14: 5 | AD14: ODP | AE14: E | AF14: E | AG14: 4 | AH14: A | AI14: DC | AK14: D | AL14: 424 | AM14: D | AO14: D | AP14: 3 | AQ14: ODP | AR14: D | AS14: D | AT14: 355 mm medium | AU14: BI | AV14: CE
C15: 08 | D15: 96 | E15: G | F15: A | G15: A | H15: F | I15: medium | J15: 2 | Q15: E | R15: 250 | S15: Standard | T15: E1 | U15: B | V15: B | W15: 0 | X15: F | Y15: 400 mm small | Z15: BI | AA15: CG | AB15: F | AC15: 7.5 | AD15: ODP | AE15: F | AF15: F | AG15: 6 | AH15: B | AI15: AL | AK15: E | AL15: 484 | AM15: E | AO15: E | AP15: 5 | AQ15: ODP | AR15: E | AS15: E | AT15: 355 mm large | AU15: BI | AV15: CF
C16: 10 | D16: 120 | E16: H | F16: B | G16: F | H16: G | I16: high | J16: 2 | Q16: F | R16: 300 | S16: Standard | T16: F1 | U16: B | V16: B | W16: 0 | X16: G | Y16: 400 mm medium | Z16: BI | AA16: CH | AB16: G | AC16: 10 | AD16: ODP | AE16: G | AF16: G | AG16: 6 | AH16: B | AI16: AM | AK16: F | AL16: 486 | AM16: F | AO16: F | AP16: 7.5 | AQ16: ODP | AR16: F | AS16: F | AT16: 400 mm small | AU16: BI | AV16: CG
C17: 12 | D17: 150 | E17: I | F17: C | G17: G | H17: H | I17: high | J17: 2 | Q17: G | R17: 350 | S17: Standard | T17: G1 | U17: B | V17: B | W17: 0 | X17: H | Y17: 400 mm large | Z17: BI | AA17: CJ | AB17: H | AC17: 15 | AD17: ODP | AE17: H | AF17: H | AG17: 6 | AH17: B | AI17: AL | AK17: G | AL17: 544 | AM17: G | AO17: G | AP17: 10 | AQ17: ODP | AR17: G | AS17: G | AT17: 400 mm medium | AU17: BI | AV17: CH
C18: 15 | D18: 180 | E18: J | F18: D | G18: H | H18: I | I18: min | J18: 3 | Q18: H | R18: 400 | S18: Standard | T18: H1 | U18: B | V18: B | W18: 0 | X18: I | Y18: 450 mm small | Z18: BI | AA18: CK | AB18: I | AC18: 1 | AD18: TEFC | AE18: A | AF18: I | AG18: 6 | AH18: B | AI18: AM | AK18: H | AL18: 604 | AM18: H | AO18: H | AP18: 15 | AQ18: ODP | AR18: H | AS18: H | AT18: 400 mm large | AU18: BI | AV18: CJ
C19: 18 | D19: 210 | E19: K | F19: E | G19: J | H19: J | I19: min | J19: 3 | Q19: I | R19: 200 | S19: High (XL) | T19: A2 | U19: C | V19: C | W19: 0 | X19: J | Y19: 450 mm medium | Z19: BI | AA19: CL | AB19: J | AC19: 1.5 | AD19: TEFC | AE19: B | AF19: J | AG19: 6 | AH19: B | AI19: DC | AK19: I | AL19: 606 | AM19: J | AO19: I | AP19: 1 | AQ19: TEFC | AR19: A | AS19: I | AT19: 450 mm small | AU19: BI | AV19: CK
C20: 20 | D20: 240 | E20: L | F20: A | G20: A | H20: K | I20: low | J20: 3 | Q20: J | R20: 400 | S20: High (XL) | T20: B2 | U20: C | V20: C | W20: 0 | X20: K | Y20: 450 mm large | Z20: BI | AA20: CM | AB20: K | AC20: 2 | AD20: TEFC | AE20: C | AF20: K | AG20: 4 | AH20: A | AI20: AL | AK20: J | AL20: 664 | AM20: K | AO20: J | AP20: 1.5 | AQ20: TEFC | AR20: B | AS20: J | AT20: 450 mm medium | AU20: BI | AV20: CL
C21: 25 | D21: 300 | E21: M | F21: B | G21: F | H21: L | I21: low | J21: 3 | Q21: K | R21: 500 | S21: High (XL) | T21: C2 | U21: C | V21: C | W21: 0 | X21: L | Y21: 500 mm small | Z21: BI | AA21: CN | AB21: L | AC21: 3 | AD21: TEFC | AE21: D | AF21: L | AG21: 4 | AH21: A | AI21: AM | AK21: K | AL21: 666 | AM21: L | AO21: K | AP21: 2 | AQ21: TEFC | AR21: C | AS21: K | AT21: 450 mm large | AU21: BI | AV21: CM
C22: 30 | D22: 360 | E22: N | F22: C | G22: G | H22: M | I22: medium | J22: 3 | Q22: L | R22: 600 | S22: High (XL) | T22: D2 | U22: C | V22: C | W22: 0 | X22: M | Y22: 500 mm large | Z22: BI | AA22: CP | AB22: M | AC22: 5 | AD22: TEFC | AE22: E | AF22: M | AG22: 4 | AH22: A | AI22: AL | AK22: L | AL22: 706 | AM22: M | AO22: L | AP22: 3 | AQ22: TEFC | AR22: D | AS22: L | AT22: 500 mm small | AU22: BI | AV22: CN
C23: 35 | D23: 420 | E23: O | F23: D | G23: H | H23: N | I23: medium | J23: 3 | Q23: M | R23: 700 | S23: High (XL) | T23: F2 | U23: C | V23: C | W23: 0 | X23: N | Y23: 560 mm | Z23: BI | AA23: CQ | AB23: N | AC23: 7.5 | AD23: TEFC | AE23: F | AF23: N | AG23: 4 | AH23: A | AI23: AM | AK23: M | AL23: 244 | AM23: A | AO23: M | AP23: 5 | AQ23: TEFC | AR23: E | AS23: M | AT23: 500 mm large | AU23: BI | AV23: CP
C24: 40 | D24: 480 | E24: P | F24: E | G24: J | H24: O | I24: high | J24: 3 | Q24: N | R24: 800 | S24: High (XL) | T24: E2 | U24: C | V24: C | W24: 0 | X24: O | Y24: 10 in | Z24: BI | AA24: BA | AB24: O | AC24: 10 | AD24: TEFC | AE24: G | AF24: O | AG24: 4 | AH24: A | AI24: DC | AK24: N | AL24: 324 | AM24: B | AO24: N | AP24: 7.5 | AQ24: TEFC | AR24: F | AS24: N | AT24: 560 mm | AU24: BI | AV24: CQ
C25: 45 | D25: 540 | E25: Q | F25: A | G25: A | H25: P | I25: high | J25: 3 | Q25: 8 | R25: 1000 | S25: High (XL) | T25: B4 | U25: C | V25: C | W25: 0 | X25: P | Y25: 11 in | Z25: BI | AA25: BB | AB25: P | AC25: 15 | AD25: TEFC | AE25: H | AF25: P | AG25: 6 | AH25: B | AI25: AL | AK25: O | AL25: 364 | AM25: C | AO25: O | AP25: 10 | AQ25: TEFC | AR25: G | AS25: O | AT25: 10 in | AU25: BI | AV25: BA
C26: 50 | D26: 600 | E26: R | F26: B | G26: F | H26: Q | I26: min | J26: 4 | L26: min | M26: low | N26: medium | O26: high | Q26: 9 | R26: 1200 | S26: High (XL) | T26: C4 | U26: C | V26: C | W26: 0 | X26: Q | Y26: 12 in | Z26: BI | AA26: BC | AB26: Q | AC26: ECM | AE26: M | AF26: Q | AG26: 6 | AH26: B | AI26: AM | AK26: P | AL26: 424 | AM26: D | AO26: P | AP26: 15 | AQ26: TEFC | AR26: H | AS26: P | AT26: 11 in | AU26: BI | AV26: BB
C27: 55 | D27: 660 | E27: S | F27: C | G27: G | H27: R | I27: min | J27: 4 | K27: A | L27: 1 | M27: n/a | N27: n/a | O27: 2 | Q27: O | R27: 1400 | S27: High (XL) | T27: D4 | U27: C | V27: C | W27: 0 | X27: R | Y27: 14 in | Z27: BI | AA27: BD | AF27: R | AG27: 6 | AH27: B | AI27: AL | AK27: Q | AL27: 484 | AM27: E | AO27: Q | AP27: ECM | AR27: M | AS27: Q | AT27: 12 in | AU27: BI | AV27: BC
C28: 60 | D28: 720 | E28: T | F28: D | G28: H | H28: S | I28: low | J28: 4 | K28: B | L28: 1 | M28: 2 | N28: 3 | O28: 4 | Q28: P | R28: 1600 | S28: High (XL) | T28: E4 | U28: C | V28: C | W28: 0 | X28: S | Y28: 16 in | Z28: BI | AA28: BE | AF28: S | AG28: 6 | AH28: B | AI28: AM | AK28: R | AL28: 486 | AM28: F | AS28: R | AT28: 14 in | AU28: BI | AV28: BD
C29: 65 | D29: 780 | E29: U | F29: E | G29: J | H29: T | I29: low | J29: 4 | K29: C | L29: 2 | M29: 3 | N29: 4 | O29: 6 | Q29: Q | R29: 5 | S29: n/a | T29: 0 | U29: B | V29: A | W29: A | X29: T | Y29: 18 in | Z29: BI | AA29: BF | AF29: T | AG29: 6 | AH29: B | AI29: DC | AK29: S | AL29: 544 | AM29: G | AS29: S | AT29: 16 in | AU29: BI | AV29: BE
C30: 70 | D30: 840 | E30: V | F30: A | G30: A | H30: U | I30: medium | J30: 4 | K30: D | L30: 4 | M30: n/a | N30: 6 | O30: 8 | Q30: R | R30: 10 | S30: n/a | T30: 0 | U30: B | V30: A | W30: B | X30: U | Y30: 20 in | Z30: BI | AA30: BG | AF30: U | AG30: 4 | AH30: A | AI30: AL | AK30: T | AL30: 604 | AM30: H | AS30: T | AT30: 18 in | AU30: BI | AV30: BF
E31: W | F31: B | G31: F | H31: V | I31: medium | J31: 4 | K31: E | L31: 4 | M31: n/a | N31: 6 | O31: 8 | Q31: S | R31: 15 | S31: n/a | T31: 0 | U31: B | V31: A | W31: C | X31: V | Y31: 22 in | Z31: BI | AA31: BH | AF31: V | AG31: 4 | AH31: A | AI31: AM | AK31: U | AL31: 606 | AM31: J | AS31: U | AT31: 20 in | AU31: BI | AV31: BG
E32: X | F32: C | G32: G | H32: W | I32: high | J32: 4 | Q32: T | R32: 20 | S32: n/a | T32: 0 | U32: B | V32: A | W32: D | X32: W | Y32: 25 in | Z32: BI | AA32: BJ | AF32: W | AG32: 4 | AH32: A | AI32: AL | AK32: V | AL32: 664 | AM32: K | AS32: V | AT32: 22 in | AU32: BI | AV32: BH
E33: Y | F33: D | G33: H | H33: X | I33: high | J33: 4 | Q33: U | R33: 25 | S33: n/a | T33: 0 | U33: B | V33: A | W33: E | X33: X | Y33: 12 in | Z33: AF | AA33: AC | AF33: X | AG33: 4 | AH33: A | AI33: AM | AK33: W | AL33: 666 | AM33: L | AS33: W | AT33: 25 in | AU33: BI | AV33: BJ
E34: Z | F34: E | G34: J | H34: Y | I34: min | J34: 5 | Q34: V | R34: 30 | S34: n/a | T34: 0 | U34: B | V34: A | W34: F | X34: Y | Y34: 14 in | Z34: AF | AA34: AD | AF34: Y | AG34: 4 | AH34: A | AI34: DC | AK34: X | AL34: 706 | AM34: M | AS34: X | AT34: 12 in | AU34: AF | AV34: AC
E35: 1 | F35: A | G35: A | H35: Z | I35: min | J35: 5 | Q35: W | R35: 35 | S35: n/a | T35: 0 | U35: B | V35: A | W35: G | X35: Z | Y35: 16 in | Z35: AF | AA35: AE | AF35: Z | AG35: 6 | AH35: B | AI35: AL | AS35: Y | AT35: 14 in | AU35: AF | AV35: AD
E36: 2 | F36: B | G36: F | H36: 1 | I36: low | J36: 5 | Q36: X | R36: 40 | S36: n/a | T36: 0 | U36: B | V36: A | W36: H | X36: 1 | Y36: 18 in | Z36: AF | AA36: AF | AF36: 1 | AG36: 6 | AH36: B | AI36: AM | AS36: Z | AT36: 16 in | AU36: AF | AV36: AE
E37: 3 | F37: C | G37: G | H37: 2 | I37: low | J37: 5 | Q37: Y | R37: 50 | S37: n/a | T37: 0 | U37: B | V37: A | W37: K | X37: 2 | Y37: 20 in | Z37: AF | AA37: AG | AF37: 2 | AG37: 6 | AH37: B | AI37: AL | AS37: 1 | AT37: 18 in | AU37: AF | AV37: AF
E38: 4 | F38: D | G38: H | H38: 3 | I38: medium | J38: 5 | Q38: Z | R38: 60 | S38: n/a | T38: 0 | U38: B | V38: A | W38: M | X38: 3 | Y38: 22 in | Z38: AF | AA38: AH | AF38: 3 | AG38: 6 | AH38: B | AI38: AM | AS38: 2 | AT38: 20 in | AU38: AF | AV38: AG
E39: 5 | F39: E | G39: J | H39: 4 | I39: medium | J39: 5 | Q39: 1 | R39: 70 | S39: n/a | T39: 0 | U39: B | V39: A | W39: N | X39: 4 | Y39: 25 in | Z39: AF | AA39: AJ | AF39: 4 | AG39: 6 | AH39: B | AI39: DC | AS39: 3 | AT39: 22 in | AU39: AF | AV39: AH
H40: 5 | I40: high | J40: 5 | Q40: 2 | R40: 80 | S40: n/a | T40: 0 | U40: B | V40: A | W40: P | AS40: 4 | AT40: 25 in | AU40: AF | AV40: AJ
H41: 6 | I41: high | J41: 5 | Q41: 3 | R41: 100 | S41: n/a | T41: 0 | U41: B | V41: A | W41: R
Q42: 4 | R42: 110 | S42: n/a | T42: 0 | U42: B | V42: A | W42: S
Q43: 5 | R43: 120 | S43: n/a | T43: 0 | U43: B | V43: A | W43: T
Q44: 6 | R44: Steam Coil | T44: 0 | U44: B | V44: F | W44: 0
Q45: 7 | R45: Hot Water Coil | T45: 0 | U45: B | V45: F | W45: 0

Sheet Sheet2 (hidden)
A2: 62XD20E-AB-AFTBT--
B3: 3 | C3: 4 | D3: 5 | E3: 7 | F3: 8 | G3: 9 | H3: 10 | I3: 11 | J3: 12 | K3: 13 | L3: 14 | M3: 15 | N3: 16 | O3: 17 | P3: 18
A4: =MID(A2,1,2) -> 62 | B4: =MID($A$2,B3,1) -> X | C4: =MID($A$2,C3,1) -> D | D4: =MID($A$2,D3,2) -> 20 | E4: E | F4: - | G4: A | H4: B | I4: - | J4: A | K4: F | L4: T | M4: B | N4: T | O4: - | P4: -

Sheet Weights
A1: CODE | B1: Description | C1: Select Code from DROPDOWN below | H1: =LEN(I26) -> 49 | AV1: Unit | AW1: TYPE | AX1: APPLICATION | AY1: CAPACITY | AZ1: CABINET | BA1: CNTLS | BB1: VOLTAGE | BC1: VINTAGE | BD1: AF ORIENT | BE1: SUPPLY | BF1: S. OPTS | BG1: S. MOTOR | BH1: S MTR. TYPE | BI1: 4/6 ROW | BJ1: COMP | BK1: Ref. P.Sw | BL1: RFG. CNTLS | BM1: HEAT TYPE | BN1: ELEC. HEAT | BO1: GAS FURN | BP1: HTR CNTL | BQ1: GAS SAFETY | BR1: ECW | BS1: ECW OPTS | BT1: VENTILN | BU1: EXHAUST BWLR | BV1: E. BWLR OPTS | BW1: E. MOTOR | BX1: E. MTR TYPE | BY1: CORROSN | BZ1: MAINTN OPTS | CA1: POWER OPTS | CB1: CNTL OPTS | CC1: SAFETY OPTS | CD1: FLTR | CE1: FINAL FLTR
A2: 1-2 | B2: UNIT | C2: LC | AA2: =LEFT(C2,2) -> LC | AV2: 1-2 | AW2: 3 | AX2: 4 | AY2: 5-6-7 | AZ2: 8-9 | BA2: 10 | BB2: 11 | BC2: 12 | BD2: 13 | BE2: 14-15 | BF2: 16 | BG2: 17 | BH2: 18 | BI2: 19 | BJ2: 20 | BK2: 21 | BL2: 22-23 | BM2: 24 | BN2: 25 | BO2: 26-27 | BP2: 28 | BQ2: 29 | BR2: 30 | BS2: 31 | BT2: 32 | BU2: 33-34 | BV2: 35 | BW2: 36 | BX2: 37 | BY2: 38-39 | BZ2: 40-41 | CA2: 42-43 | CB2: 44-45 | CC2: 46-47 | CD2: 48 | CE2: 49
A3: 3 | B3: TYPE | C3: O | AA3: =LEFT(C3,1) -> O | AV3: PR | AW3: O | AX3: A | AY3: 36 | AZ3: A0 | BA3: * | BB3: 2 | BC3: A | BD3: * | BE3: AA= 10” DD, Airfoil | BF3: * | BG3: A = 1HP | BH3: * | BI3: A = 4-Row Evap. | BJ3: * | BK3: * | BL3: 0 | BM3: 0 | BN3: 0 | BO3: 0 | BP3: * | BQ3: * | BR3: 0 | BS3: * | BT3: 0 | BU3: 0 | BV3: * | BW3: 0 | BX3: * | BY3: * | BZ3: * | CA3: * | CB3: * | CC3: * | CD3: * | CE3: 0
A4: 4 | B4: APPLICATION | C4: A | AA4: =LEFT(C4,1) -> A | AV4: LC | AW4: R | AX4: W | AY4: 48 | AZ4: B0 | BB4: 3 | BE4: AB= 11” DD, Airfoil | BG4: B = 1.5HP | BI4: B = 6-Row Evap | BL4: AL = RHX1 | BM4: A = Electric | BN4: A = 5kW | BO4: A1 = 75 MBH | BR4: A = ECW244 | BT4: A = OA Damper ONLY | BU4: AA= 10” DD, Airfoil | BW4: A = 1HP | CE4: A
A5: 5-6-7 | B5: CAPACITY | C5: 240 | D5: Select appropriate Cabinet and fans | AA5: =C5 -> 240 | AW5: M | AX5: H | AY5: 60 | AZ5: C0 | BB5: 4 | BE5: AC= 12” DD, Airfoil | BG5: C = 2HP | BI5: C = 4-Row CWC | BL5: AM = RHx2 | BM5: B = N. Gas x1 | BN5: B = 10kW | BO5: B1 = 100 MBH | BR5: B = ECW324 | BT5: B = OA Damper ONLY | BU5: AB= 11” DD, Airfoil | BW5: B = 1.5HP | CE5: B
A6: 8-9 | B6: CABINET | C6: K4 | D6: =IF(OR($C$4="F",$C$4="W"), "Change to '0' fans","Select # fans") -> Select # fans | AA6: =LEFT(C6,2) -> K4 | AX6: F | AY6: 72 | AZ6: D0 | BB6: 5 | BE6: AD= 14” DD, Airfoil | BG6: D = 3HP | BI6: D = 6-Row CWC | BL6: AN = SCx1 | BM6: C = N. Gas x 2 | BN6: C = 15kW | BO6: C1 = 150 MBH | BR6: C = ECW364 | BT6: C = OA Damper ONLY | BU6: AC= 12” DD, Airfoil | BW6: C = 2HP | CE6: C
A7: 10 | B7: CNTLS | C7: * | AA7: =C7 -> * | AY7: 84 | AZ7: E0 | BB7: 6 | BE7: AE= 16” DD, Airfoil | BG7: E = 5HP | BI7: X | BL7: BC = RHx1 | BM7: D = P. Gas x1 | BN7: D = 20kW | BO7: D1 = 200 MBH | BR7: D = ECW424 | BT7: D = OA & RA Dampers | BU7: AD= 14” DD, Airfoil | BW7: D = 3HP | CE7: D
A8: 11 | B8: VOLTAGE | C8: 2 | AA8: =LEFT(C8,1) -> 2 | AY8: 96 | AZ8: A1 | BB8: 7 | BE8: AF= 18” DD, Airfoil | BG8: F = 7.5HP | BL8: BD = SCx1 | BM8: E = P. Gas x2 | BN8: E = 25kW | BO8: E1 = 250 MBH | BR8: E = ECW484 | BT8: E = OA & RA Dampers | BU8: AE= 16” DD, Airfoil | BW8: E = 5HP | CE8: E
A9: 12 | B9: VINTAGE | C9: A | AA9: =C9 -> A | AY9: 120 | AZ9: A2 | BB9: X | BE9: AG= 20” DD, Airfoil | BG9: G = 10HP | BL9: BG = RHx1 | BM9: F = HWC | BN9: F = 30kW | BO9: F1 = 300 MBH | BR9: F = ECW486 | BT9: F = OA & RA Dampers | BU9: AF= 18” DD, Airfoil | BW9: F = 7.5HP | CE9: F
A10: 13 | B10: SUP. ORIENTATION | C10: * | AA10: =C10 -> * | AY10: 150 | AZ10: B1 | BE10: AH= 22” DD, Airfoil | BG10: H = 15HP | BL10: BH = SCx1 | BM10: X | BN10: G = 35kW | BO10: G1 = 350 MBH | BR10: G = ECW544 | BT10: G = OA & RA Dampers | BU10: AG= 20” DD, Airfoil | BW10: G = 10HP | CE10: G
A11: 14-15 | B11: SUPPLY | C11: BF= 18” DD, BI | D11: =IF(OR(LEFT(C11,1)="A",LEFT(C11,1)="B"), "Select Motor HP (Code 17)", "Code 17=M") -> Select Motor HP (Code 17) | AA11: =LEFT(C11,2) -> BF | AT11: PRRF300C4**A*BG*F*D*AMF000**0*G00*0************0 | AY11: 180 | AZ11: B2 | BE11: AJ= 25” DD, Airfoil | BG11: J = 20HP | BL11: CC = RHx2 | BN11: H = 40kW | BO11: H1 = 400 MBH | BR11: H = ECW604 | BT11: H = OA & RA Dampers | BU11: AH= 22” DD, Airfoil | BW11: H = 15HP | CE11: H
A12: 16 | B12: S. OPTS | C12: * | AA12: =C12 -> * | AY12: 210 | AZ12: B3 | BE12: AK= 28” DD, Airfoil | BG12: K = 25HP | BL12: CD = SCx1 | BN12: J = 45kW | BO12: J1 = 500 MBH | BR12: J = ECW606 | BT12: X | BU12: AJ= 25” DD, Airfoil | BW12: J = 20HP | CE12: X
A13: 17 | B13: S. MOTOR | C13: E = 5HP | D13: =IF(OR(LEFT(C11,1)="C",LEFT(C11,1)="D"),"Code 17=M","Select Motor") -> Select Motor | AA13: =LEFT(C13,1) -> E | AT13: =LEN(AT17) -> 49 | AY13: 240 | AZ13: B4 | BE13: BA= 10” DD, BI | BG13: L = 30HP | BL13: CH = RHx2 | BN13: K = 50kW | BO13: K1 = 600 MBH | BR13: K = ECW664 | BU13: AK= 28” DD, Airfoil | BW13: K = 25HP
A14: 18 | B14: S MTR. TYPE | C14: * | AA14: =C14 -> * | AY14: 300 | AZ14: C2 | BE14: BB= 11” DD, BI | BG14: M = ECM | BL14: CJ = SCx1 | BN14: L = 55kW | BO14: A2 = 100+100 MBH | BR14: L = ECW666 | BU14: BA= 10” DD, BI | BW14: L = 30HP
A15: 19 | B15: 4/6 ROW | C15: B = 6-Row Evap | D15: =IF(OR(C4="A",C4="H",C4="W"),"Select Evaporator","Select Remote Evap or Water Coil") -> Select Evaporator | AA15: =LEFT(C15,1) -> B | AY15: 360 | AZ15: C3 | BE15: BC= 12” DD, BI | BG15: X | BL15: DA = SCx1 | BN15: M = 60kW | BO15: G2 = 150+150 MBH | BR15: M = ECW706 | BU15: BB= 11” DD, BI | BW15: M = ECM
A16: 20 | B16: COMP | C16: * | AA16: =LEFT(C16,1) -> * | AY16: 420 | AZ16: C4 | BE16: BD= 14” DD, BI | BL16: DB = SCx1 | BN16: N = 70kW | BO16: B2 = 200+200 MBH | BR16: N = ECW724 | BU16: BC= 12” DD, BI | BW16: X
A17: 21 | B17: Ref. Pr. Sw | C17: * | D17: =IF(OR(LEFT(C15,1)="C",LEFT(C15,1)="D"),"RH/SC NOT POSSIBLE","Dehumidication option available") -> Dehumidication option available | AA17: * | AT17: =AA2&AA3&AA4&TEXT(AA5,"000")&AA6&AA7&AA8&AA9&AA10&AA11&AA12&AA13&AA14&AA15&AA16&AA17&TEXT(AA18,"00")&AA19&AA20&TEXT(AA21,"00")&AA22&AA23&AA24&AA25&AA26&TEXT(AA27,"00")&AA28&AA29&AA30&AA31&AA32&AA33&AA34&AA35&AA36&AA37 -> LCOA240K4*2A*BF*E*B**DC0000**0*B00*0************0 | AY17: 480 | AZ17: C6 | BE17: BE= 16” DD, BI | BL17: DC = RHSC | BN17: P = 80kW | BO17: C2 = 250+250 MBH | BR17: P = ECW726 | BU17: BD= 14” DD, BI
A18: 22-23 | B18: RFG. CNTLS | C18: DC = RHSC | D18: =IF(C19=0,"",IF(LEFT(C19,1)="F","Code 24 & 25-26 = 0","Select Gas or Elec.HeatCap.")) ->  | AA18: =LEFT(C18,2) -> DC | AY18: 540 | AZ18: K5 | BE18: BF= 18” DD, BI | BL18: DD = SCx1 | BN18: Q = 90kW | BO18: D2 = 300+300 MBH | BR18: Q = ECW784 | BU18: BE= 16” DD, BI
A19: 24 | B19: HEAT TYPE | C19: 0 | D19: =IF(C20=0,"","Code 23 = Elec. Heat") ->  | AA19: =LEFT(C19,1) -> 0 | AY19: 600 | AZ19: K4 | BE19: BG= 20” DD, BI | BL19: DE = SCx1 | BN19: R = 100kW | BO19: F2 = 350+350 MBH | BR19: R = ECW786 | BU19: BF= 18” DD, BI
A20: 25 | B20: ELEC. HEAT | C20: 0 | D20: =IF(C21=0,"","Code 23 = Gas. Heat") ->  | H20: * Unit Shown: PR A1 Cabinet | AA20: =LEFT(C20,1) -> 0 | AY20: 660 | AZ20: D4 | BE20: BH= 22” DD, BI | BL20: DF = SCx1 | BN20: S = 110kW | BO20: E2 = 400+400 MBH | BR20: S = ECW7812 | BU20: BG= 20” DD, BI
A21: 26-27 | B21: GAS FURN | C21: 0 | AA21: =LEFT(C21,2) -> 0 | AY21: 720 | AZ21: D6 | BE21: BJ= 25” DD, BI | BL21: DG = SCx1 | BN21: T = 120kW | BO21: H2 = 500+500MBH | BR21: T = ECW844 | BU21: BH= 22” DD, BI
A22: 28 | B22: HTR CNTL | C22: * | AA22: =LEFT(C22,1) -> * | AY22: 780 | AZ22: D8 | BE22: BK= 28” DD, BI | BL22: DH = RHSC | BN22: U = 130kW | BO22: J2 = 600+600MBH | BR22: U = ECW846 | BU22: BJ= 25” DD, BI
A23: 29 | B23: GAS SAFETY | C23: * | D23: =IF(LEFT(C24,1)="0","","Select Exhaust Fan") ->  | H23: Quote/Job# | AA23: =LEFT(C23,1) -> * | AY23: 840 | AZ23: D9 | BE23: CA= 280mm Single ECM (CIW.087.5FA) | BL23: DJ = SCx1 | BN23: V = 140kW | BO23: A4 = (4) 200 MBH | BR23: V = ECW8412 | BU23: BK= 28” DD, BI
A24: 30 | B24: ECW | C24: 0 | H24: Customer | AA24: =LEFT(C24,1) -> 0 | AZ24: E6 | BE24: CB= 315mm Single ECM (CIW.098.5FA) | BL24: DK = SCx1 | BN24: W = 150kW | BO24: B4 = (4) 250 MBH | BR24: X = Special | BU24: CA= 280mm Single ECM (CIW.087.5FA)
A25: 31 | B25: ECW OPTS | C25: * | M25: =IF(H1<48,"Check Code","") ->  | AA25: =LEFT(C25,1) -> * | AZ25: E8 | BE25: CC= 315mm Single ECM (CIW.080.5FA) | BL25: XX | BN25: X | BO25: C4 = (4) 300 MBH | BU25: CB= 315mm Single ECM (CIW.098.5FA)
A26: 32 | B26: VENTILN | C26: B = OA Damper ONLY | D26: =IF(C27=0,"",IF(OR(LEFT(C27,1)="A",LEFT(C27,1)="B"), "Select Motor HP (Code 35)", "Code 35=M")) ->  | I26: LCOA360D9*2A*BF*E*B**DC0000**0*B00*0************0 | AA26: =LEFT(C26,1) -> B | AZ26: E9 | BE26: CD= 355mm Single ECM (CIW.110.5HF) | BO26: D4 = (4) 350 MBH | BU26: CC= 315mm Single ECM (CIW.080.5FA)
A27: 33-34 | B27: EXHAUST BWLR | C27: 0 | AA27: =LEFT(C27,2) -> 0 | AZ27: F1 | BE27: CE= 355mm Single ECM (CIW.110.6FF) | BO27: E4 = (4) 400 MBH | BU27: CD= 355mm Single ECM (CIW.110.5HF)
A28: 35 | B28: E. BWLR OPTS | C28: * | D28: =IF(C29=0,"",IF(OR(LEFT(C27,1)="C",LEFT(C27,1)="D"),"=M","Select Motor")) ->  | H28: =I23&": "&'Sheet 3'!B56 -> : RH/SC 6-Row Evap. 18 inch FAN; 5HP D6 Cab | AA28: =C28 -> * | AZ28: F2 | BE28: CF= 355mm Single ECM (CIB.112.5HF) | BU28: CE= 355mm Single ECM (CIW.110.6FF)
A29: 36 | B29: E. MOTOR | C29: 0 | H29: ='Sheet 3'!B57 -> LCOA | I29: ='Sheet 3'!C57 -> Shipping Weight | J29: ='Sheet 3'!D57 -> Operating Weight | K29: ='Sheet 3'!E57 -> Center of Gravity | N29: ='Sheet 3'!H57 -> Corner Weights | AA29: =LEFT(C29,1) -> 0 | AZ29: F3 | BE29: CG= 400mm Single ECM (CIW.123.5HF) | BU29: CF= 355mm Single ECM (CIB.112.5HF)
A30: 37 | B30: E. MTR TYPE | C30: * | I30: ='Sheet 3'!C58 -> lbs (kg) | J30: ='Sheet 3'!D58 -> lbs (kg) | K30: ='Sheet 3'!E58 -> X | L30: ='Sheet 3'!F58 -> Y | M30: ='Sheet 3'!G58 -> Z | N30: ='Sheet 3'!H58 -> LF | O30: ='Sheet 3'!I58 -> LB | P30: ='Sheet 3'!J58 -> RF | Q30: ='Sheet 3'!K58 -> RB | AA30: =C30 -> * | AZ30: F4 | BE30: CH= 400mm Single ECM (CIW.123.6FF) | BU30: CG= 400mm Single ECM (CIW.123.5HF)
A31: 38-39 | B31: CORROSN | C31: ** | H31: ='Sheet 3'!B59 -> 360 | I31: ='Sheet 3'!C59 -> 5170 | J31: ='Sheet 3'!D59 -> 5170 | K31: ='Sheet 3'!E59 -> 97.66103556 | L31: ='Sheet 3'!F59 -> 39.66694628 | M31: ='Sheet 3'!G59 -> 62.26886583 | N31: ='Sheet 3'!H59/('Sheet 3'!H59+'Sheet 3'!J59)*('Sheet2 (2)'!L41+'Sheet2 (2)'!L45+'Sheet2 (2)'!L42) -> 699.9872232 | O31: ='Sheet 3'!I59/('Sheet 3'!I59+'Sheet 3'!K59)*('Sheet2 (2)'!L44+'Sheet2 (2)'!L46+'Sheet2 (2)'!L43) -> 648.1574858 | P31: ='Sheet 3'!J59/('Sheet 3'!H59+'Sheet 3'!J59)*('Sheet2 (2)'!L41+'Sheet2 (2)'!L45+'Sheet2 (2)'!L42) -> 1986.450228 | Q31: ='Sheet 3'!K59/('Sheet 3'!I59+'Sheet 3'!K59)*('Sheet2 (2)'!L44+'Sheet2 (2)'!L46+'Sheet2 (2)'!L43) -> 1838.217132 | AA31: ** | AZ31: G2 | BE31: CJ= 400mm Single ECM (CIB.125.6FF) | BU31: CH= 400mm Single ECM (CIW.123.6FF)
A32: 40-41 | B32: MAINTN OPTS | C32: ** | I32: ='Sheet 3'!C60 -> -2342.01 | J32: ='Sheet 3'!D60 -> -2342.01 | K32: ='Sheet 3'!E60 -> -2480.590303 | L32: ='Sheet 3'!F60 -> -1007.540435 | M32: ='Sheet 3'!G60 -> -1581.629192 | N32: ='Sheet 3'!H60 -> -335.22 | O32: ='Sheet 3'!I60 -> -276.33 | P32: ='Sheet 3'!J60 -> -951.3 | Q32: ='Sheet 3'!K60 -> -783.69 | AA32: ** | AZ32: G3 | BE32: CK= 450mm Single ECM (CIW.138.5HF) | BU32: CJ= 400mm Single ECM (CIB.125.6FF)
A33: 42-43 | B33: POWER OPTS | C33: ** | H33: ='Sheet 3'!F61 -> Approx. Main Cabinet LXW: 135 X 88 | Q33: ='Sheet 3'!K61 -> 2017-07-07 | AA33: ** | AZ33: G4 | BE33: CL= 450mm Single ECM (CIW.138.6FF) | BU33: CK= 450mm Single ECM (CIW.138.5HF)
A34: 44-45 | B34: CNTL OPTS | C34: ** | H34: ='[1]Sheet 3'!B61 -> * Corner weights along the main cabinet (Including Condenser section) | AA34: ** | AZ34: G6 | BE34: CM= 450mm Single ECM (CIB.140.6IF) | BU34: CL= 450mm Single ECM (CIW.138.6FF)
A35: 46-47 | B35: SAFETY OPTS | C35: ** | I35: TOP VIEW | Q35: =IF('Sheet2 (2)'!S13=0,"ERROR","") ->  | R35: =MROUND('Sheet2 (2)'!L47,10) -> 5170 | AA35: ** | AZ35: H4 | BE35: CN= 500mm Single ECM (CIW.155.6IF) | BU35: CM= 450mm Single ECM (CIB.140.6IF)
A36: 48 | B36: FLTR | C36: * | H36: ='Sheet2 (2)'!J44&" = "&ROUND('Sheet2 (2)'!L44,0)&" lb" -> M4 = 706 lb | L36: ='Sheet2 (2)'!J46&" = "&ROUND('Sheet2 (2)'!L46,0)&" lb" -> M3 = 1298 lb | Q36: ='Sheet2 (2)'!J43&" = "&ROUND('Sheet2 (2)'!L43,0)&" lb" -> M6 = 482 lb | AA36: * | AZ36: H6 | BE36: CP= 500mm Single ECM (CIB.160.6IF) | BU36: CN= 500mm Single ECM (CIW.155.6IF)
A37: 49 | B37: FINAL FLTR | C37: 0 | D37: Future | H37: ="("&'Sheet2 (2)'!$D$6&","&'Sheet2 (2)'!$E$6&")" -> (0,88) | L37: ="("&'Sheet2 (2)'!$H$6&","&'Sheet2 (2)'!$I$6&")" -> (132,88) | Q37: ="("&'Sheet2 (2)'!$M$6&","&'Sheet2 (2)'!$N$6&")" -> (250,88) | AA37: 0 | AZ37: H8 | BE37: CQ= 560mm Single ECM (CIW.174.6IF) | BU37: CP= 500mm Single ECM (CIB.160.6IF)
M38: CONDENSING SECTION | AZ38: H9 | BE38: DA= 280mm Dual ECM (CIW.087.5FA) | BU38: CQ= 560mm Single ECM (CIW.174.6IF)
AZ39: J6 | BE39: DB= 315mm Dual ECM (CIW.098.5FA) | BU39: DA= 280mm Dual ECM (CIW.087.5FA)
H40: ="("&'Sheet2 (2)'!$D$21&","&'Sheet2 (2)'!$E$21&")" -> (0,0) | L40: ="("&'Sheet2 (2)'!$H$21&","&'Sheet2 (2)'!$I$21&")" -> (132,0) | Q40: ="("&'Sheet2 (2)'!$M$21&","&'Sheet2 (2)'!$N$21&")" -> (250,0) | AZ40: J8 | BE40: DC= 315mm Dual ECM (CIW.080.5FA) | BU40: DB= 315mm Dual ECM (CIW.098.5FA)
H41: ='Sheet2 (2)'!J41&" = "&ROUND('Sheet2 (2)'!L41,0)&" lb" -> M1 = 730 lb | L41: ='Sheet2 (2)'!J45&" = "&ROUND('Sheet2 (2)'!L45,0)&" lb" -> M2 = 1467 lb | Q41: ='Sheet2 (2)'!J42&" = "&ROUND('Sheet2 (2)'!L42,0)&" lb" -> M5 = 489 lb | AZ41: J9 | BE41: DD= 355mm Dual ECM (CIW.110.5HF) | BU41: DC= 315mm Dual ECM (CIW.080.5FA)
G42: ANILSARMA7 | AZ42: F0 | BE42: DE= 355mm Dual ECM (CIW.110.6FF) | BU42: DD= 355mm Dual ECM (CIW.110.5HF)
AZ43: G0 | BE43: DF= 355mm Dual ECM (CIB.112.5HF) | BU43: DE= 355mm Dual ECM (CIW.110.6FF)
AZ44: H0 | BE44: DG= 400mm Dual ECM (CIW.123.5HF) | BU44: DF= 355mm Dual ECM (CIB.112.5HF)
G45: Notes: | AZ45: J0 | BE45: DH= 400mm Dual ECM (CIW.123.6FF) | BU45: DG= 400mm Dual ECM (CIW.123.5HF)
G46: 1. Follow cabinet CFM limits for each component. | BE46: DJ= 400mm Dual ECM (CIB.125.6FF) | BU46: DH= 400mm Dual ECM (CIW.123.6FF)
G47: 2. Refer to PR Code String for additional details. | BE47: EA= Dual 14" DD, BI | BU47: DJ= 400mm Dual ECM (CIB.125.6FF)
G48: 3. Double furnace will select an "XL" cabinet. | BE48: EB= Dual 14" DD, AF | BU48: EA= Dual 14" DD, BI
BE49: EC= Dual 16" DD, BI | BU49: EB= Dual 14" DD, AF
BE50: ED= Dual 16" DD, AF | BU50: EC= Dual 16" DD, BI
BE51: EE= Dual 18" DD, BI | BL51: 0 | BU51: ED= Dual 16" DD, AF
BE52: EF= Dual 18" DD, AF | BL52: AL = RHX1 | BU52: EE= Dual 18" DD, BI
BE53: EG= Dual 20" DD, BI | BL53: AM = RHx2 | BU53: EF= Dual 18" DD, AF
BE54: EH= Dual 20" DD, AF | BL54: AN = SCx1 | BU54: EG= Dual 20" DD, BI
BE55: XX = Applied Special | BL55: BC = RHx1 | BU55: EH= Dual 20" DD, AF
BL56: BD = SCx1 | BU56: XX = Applied Special
BL57: BG = RHx1
BL58: BH = SCx1
BL59: CC = RHx2
BL60: CD = SCx1
BL61: CH = RHx2
BL62: CJ = SCx1
BL63: DA = SCx1
BL64: DB = SCx1
BL65: DC = RHSC
BL66: DD = SCx1
BL67: DE = SCx1
BL68: DF = SCx1
BL69: DG = SCx1
BL70: DH = RHSC
BL71: DJ = SCx1
BL72: DK = SCx1
BL73: XX

Sheet Sheet2 (2) (hidden)
U1: User Notes:
T2: 1 | U2: Enter Length (X) and Width (Y) of unit
C3: 8 POINT | D3: 10 | E3: =$B$13 -> 88 | H3: =D3+$D$25/3 -> 105.3333333 | I3: =$B$13 -> 88 | M3: =H3+$D$25/3 -> 200.6666667 | N3: =$B$13 -> 88 | Q3: =$D$25-10 -> 276 | R3: =$B$13 -> 88 | T3: 2 | U3: Enter unit Weight in lbs and C.G information
T4: 3 | U4: Select number of isolators
C5: Product Code | D5: = | E5: =Weights!I26 -> LCOA360D9*2A*BF*E*B**DC0000**0*B00*0************0
C6: 6 POINT | D6: =D21 -> 0 | E6: =B13 -> 88 | H6: =H21 -> 132 | I6: =B13 -> 88 | M6: =M21 -> 250 | N6: =B13/2+S13/2 -> 88
C10: 4 POINT | D10: 0 | E10: =$B$13 -> 88 | H10: =D19 -> 79 | I10: =$B$13 -> 88 | X10: From actual weights
D12: M4 | H12: M3 | M12: M6 | Q12: M8 | T12: =Weights!O31+Weights!Q31 -> 2486.374618 | U12: =L44+L46+L43 -> 2486.374618 | X12: M4 | AA12: M3
A13: USER INPUT | B13: =ROUND('Sheet 3'!F43,0) -> 88 | S13: =ROUND(VLOOKUP('Sheet 3'!B5,'Sheet 3'!E121:G166,'Sheet 3'!G121,FALSE),0) -> 88
X15: M4 | Y15: 578 | Z15: 10 | AA15: 112
D16: (0,0) | X16: M5 | Y16: 713 | Z16: 86 | AA16: 0
D17: M1 | H17: M2 | M17: M5 | Q17: M7 | X17: M6 | Y17: 596 | Z17: 86 | AA17: 112
C18: 4 POINT | D18: 0 | E18: 0 | H18: =D19 -> 79 | I18: 0 | X18: M7
D19: 79 | J19: USER INPUT | X19: M8
X20: Total | Y20: =SUM(Y15:Y19) -> 1887 | Z20: =SUMPRODUCT((Y15:Y19),(Z15:Z19))/SUM(Y15:Y19) -> 62.72072072 | AA20: =SUMPRODUCT((Y15:Y19),(AA15:AA19))/SUM(Y15:Y19) -> 69.68097509
C21: 6 POINT | D21: 0 | E21: 0 | H21: ='Sheet 3'!D43 -> 132 | I21: 0 | M21: =D22 -> 250 | N21: =B13/2-S13/2 -> 0 | T21: =Weights!N31+Weights!P31 -> 2686.437451 | U21: =L41+L45+L42 -> 2686.437451 | X21: Estimated C.G | Z21: X | AA21: Y
D22: =H21+VLOOKUP('Sheet 3'!B5,'Sheet 3'!E121:G166,'Sheet 3'!F121,FALSE) -> 250 | O22: USER INPUT
C24: 8 POINT | D24: 10 | E24: 0 | H24: =D24+$D$25/3 -> 105.3333333 | I24: 0 | M24: =H24+$D$25/3 -> 200.6666667 | N24: 0 | Q24: =$D$25-10 -> 276 | R24: 0
D25: 286 | S25: USER INPUT
E28: Operating Weight (lb) | F28: C.G
F29: X | G29: Y
E30: ='Sheet 3'!C42 -> 5172.812069 | F30: =Weights!K31 -> 97.66103556 | G30: =Weights!L31 -> 39.66694628 | H30: USER INPUT
E32: 4 Point Load Distribution
E33: =D17 -> M1 | F33: =$E$30/(($F$30-$D$18)^2+($G$30-$E$18)^2)^0.5 -> 49.07353042 | G33: =$E$30*F33/$F$37 -> 807.4393439
E34: =H17 -> M2 | F34: =$E$30/(($F$30-$H$18)^2+($G$30-$I$18)^2)^0.5 -> 118.0004889 | G34: =$E$30*F34/$F$37 -> 1941.540307
E35: =H12 -> M3 | F35: =$E$30/(($F$30-$H$10)^2+($G$30-$I$10)^2)^0.5 -> 99.84117697 | G35: =$E$30*F35/$F$37 -> 1642.753104
E36: =D12 -> M4 | F36: =$E$30/(($F$30-$D$10)^2+($G$30-$E$10)^2)^0.5 -> 47.47145376 | G36: =$E$30*F36/$F$37 -> 781.079314
E37: Total | F37: =SUM(F33:F36) -> 314.38665 | G37: =SUM(G33:G36) -> 5172.812069 | H37: =IF($G$37=$E$30,"Check","") -> Check
J40: 6 Point Load Distribution
J41: =D17 -> M1 | K41: =$E$30/(('Sheet2 (2)'!$F$30-'Sheet2 (2)'!$D$21)^2+('Sheet2 (2)'!$G$30-'Sheet2 (2)'!$E$21)^2)^0.5 -> 49.07353042 | L41: =$E$30*K41/$K$47 -> 730.2622377
J42: =M17 -> M5 | K42: =$E$30/(('Sheet2 (2)'!$F$30-'Sheet2 (2)'!$M$21)^2+('Sheet2 (2)'!$G$30-'Sheet2 (2)'!$N$21)^2)^0.5 -> 32.86022688 | L42: =$E$30*K42/$K$47 -> 488.9923878
J43: =M12 -> M6 | K43: =$E$30/(('Sheet2 (2)'!$F$30-'Sheet2 (2)'!$M$6)^2+('Sheet2 (2)'!$G$30-'Sheet2 (2)'!$N$6)^2)^0.5 -> 32.36597342 | L43: 481.6374117
J44: =D12 -> M4 | K44: =$E$30/(('Sheet2 (2)'!$F$30-'Sheet2 (2)'!$D$6)^2+('Sheet2 (2)'!$G$30-'Sheet2 (2)'!$E$6)^2)^0.5 -> 47.47145376 | L44: 706.4217665
J45: =H17 -> M2 | K45: =$E$30/(('Sheet2 (2)'!$F$30-'Sheet2 (2)'!$H$21)^2+('Sheet2 (2)'!$G$30-'Sheet2 (2)'!$I$21)^2)^0.5 -> 98.59450113 | L45: 1467.182826
J46: =H12 -> M3 | K46: =$E$30/(('Sheet2 (2)'!$F$30-'Sheet2 (2)'!$H$6)^2+('Sheet2 (2)'!$G$30-'Sheet2 (2)'!$I$6)^2)^0.5 -> 87.24663405 | L46: 1298.31544
J47: Total | K47: =SUM(K41:K46) -> 347.6123197 | L47: =SUM(L41:L46) -> 5172.812069 | M47: =IF($L$47=$E$30,"Check","") -> Check
O50: 8 Point Load Distribution
O51: =D17 -> M1 | P51: =$E$30/(($F$30-$D$24)^2+(G30-E24)^2)^0.5 -> 53.7613171 | Q51: =$E$30*P51/$P$59 -> 570.0976929
O52: =H17 -> M2 | P52: =$E$30/((F30-H24)^2+(G30-I24)^2)^0.5 -> 128.0332045 | Q52: 1357.694313
O53: =H12 -> M3 | P53: =$E$30/(($F$30-$H$3)^2+($G$30-$I$3)^2)^0.5 -> 105.7008878 | Q53: 1120.877157
O54: =D12 -> M4 | P54: =$E$30/(($F$30-$D$3)^2+($G$30-$E$3)^2)^0.5 -> 51.67507441 | Q54: 547.9746831
O55: =M17 -> M5 | P55: =$E$30/(($F$30-$M$24)^2+($G$30-$N$24)^2)^0.5 -> 46.86389801 | Q55: 496.9558332
O56: =M12 -> M6 | P56: =$E$30/(($F$30-$M$3)^2+($G$30-$N$3)^2)^0.5 -> 45.46265602 | Q56: 482.0967325
O57: =Q17 -> M7 | P57: =$E$30/(($F$30-$Q$24)^2+($G$30-$R$24)^2)^0.5 -> 28.31358749 | Q57: 300.243963
O58: =Q12 -> M8 | P58: =$E$30/(($F$30-$Q$3)^2+($G$30-$R$3)^2)^0.5 -> 27.99557595 | Q58: 296.8716936
O59: Total | P59: =SUM(P51:P58) -> 487.8062013 | Q59: =SUM(Q51:Q58) -> 5172.812069 | R59: =IF($Q$59=$E$30,"Check","") -> Check

Sheet Sheet 3 (hidden)
B1: =LEN(A3) -> 48 | BJ1: PRO/RW | BK1: Total coils' lbs | BL1: lb of water | BQ1: Condenser
B2: =Weights!I26 -> LCOA360D9*2A*BF*E*B**DC0000**0*B00*0************0 | F2: Voltage | G2: =MID(B2,11,1) -> 2 | P2: Evap | Q2: 36 | R2: 48 | S2: 60 | T2: 72 | U2: 84 | V2: 96 | W2: 120 | X2: 150 | Y2: 180 | Z2: 210 | AA2: 240 | AB2: 300 | AC2: 360 | AD2: 420 | AE2: 480 | AF2: 540 | AG2: 600 | AH2: 660 | AI2: 720 | AJ2: 780 | AK2: 840 | AM2: Comp | AN2: 36 | AO2: 48 | AP2: 60 | AQ2: 72 | AR2: 84 | AS2: 96 | AT2: 120 | AU2: 150 | AV2: 180 | AW2: 210 | AX2: 240 | AY2: 300 | AZ2: 360 | BA2: 420 | BB2: 480 | BC2: 540 | BD2: 600 | BE2: 660 | BF2: 720 | BG2: 780 | BH2: 840 | BJ2: 36 | BK2: 20 | BL2: 3.4 | BQ2: PRO | BR2: 36 | BS2: 48 | BT2: 60 | BU2: 72 | BV2: 84 | BW2: 96 | BX2: 120 | BY2: 150 | BZ2: 180 | CA2: 210 | CB2: 240 | CC2: 300 | CD2: 360 | CE2: 420 | CF2: 480 | CG2: 540 | CH2: 600 | CI2: 660 | CJ2: 720 | CK2: 780 | CL2: 840
A3: PROA240D4*2**BF*B*A**ALB00**E*EBF*B************0 | D3: Cabinet | E3: Fans | F3: Evap | G3: WC/Evap | H3: RH/SC | I3: Supply | J3: Exhaust | K3: ECW | P3: PRO | Q3: 24 | R3: 24 | S3: 24 | T3: 37 | U3: 37 | V3: 37 | W3: 55 | X3: 55 | Y3: 55 | Z3: 80 | AA3: 80 | AB3: 94 | AC3: 127 | AD3: 127 | AE3: 226 | AF3: 226 | AG3: 226 | AH3: 226 | AI3: 500 | AJ3: 500 | AK3: 550 | AM3: PRO | AN3: ZP34 | AO3: ZP42 | AP3: ZP51 | AQ3: ZP54 | AR3: ZP72 | AS3: ZP83 | AT3: ZP51 | AU3: ZP61 | AV3: ZP72 | AW3: ZP91 | AX3: ZP103 | AY3: ZP120 | AZ3: ZP137 | BA3: ZP182 | BB3: ZPt206 | BC3: ZPT240 | BD3: ZPT274 | BE3: ZPT364 | BF3: ZPT240 | BG3: ZPT274 | BH3: ZPT364 | BJ3: 48 | BK3: 36 | BL3: 5 | BQ3: A1 | BR3: 463 | BS3: 463 | BT3: 463 | BU3: 463 | BV3: 463 | BW3: 463 | BX3: # | BY3: # | BZ3: # | CA3: # | CB3: # | CC3: # | CD3: # | CE3: # | CF3: # | CG3: # | CH3: # | CI3: # | CJ3: # | CK3: # | CL3: #
B4: =IF(MID(B2,3,1)="M","PRR"&MID(B2,4,1),LEFT(B2,4)) -> LCOA | C4: =ABS(MID(B2,5,3)) -> 360 | D4: =IF(MID($B$2,8,1)="K","C",MID($B$2,8,1)) -> D | E4: =MID(B2,9,1) -> 9 | F4: =IF(OR(MID($B$2,19,1)="A",MID($B$2,19,1)="B"),MID($B$2,19,1),"") -> B | G4: =IF(OR(MID($B$2,19,1)="C",MID($B$2,19,1)="D"),MID($B$2,19,1),"") ->  | H4: DC | I4: =MID(B2,14,2)&MID(B2,17,1) -> BFE | J4: =MID(B2,33,2)&MID(B2,36,1) -> 000 | K4: =MID($B$2,30,1) -> 0 | P4: PRR | Q4: 83 | R4: 83 | S4: 83 | T4: 80 | U4: 80 | V4: 80 | W4: 94 | X4: 94 | Y4: 127 | Z4: 127 | AA4: 127 | AB4: 226 | AC4: 226 | AD4: 226 | AE4: 500 | AF4: 500 | AG4: 500 | AH4: 550 | AI4: 500 | AJ4: 500 | AK4: 550 | AM4: PRR | AN4: ZP29 | AO4: ZP39 | AP4: ZP51 | AQ4: ZP61 | AR4: ZP72 | AS4: ZP83 | AT4: ZP51 | AU4: ZP67 | AV4: ZP83 | AW4: ZP90 | AX4: ZP103 | AY4: ZP137 | AZ4: ZP154 | BA4: ZP182 | BB4: ZPT206 | BC4: ZPT240 | BD4: ZPT274 | BE4: ZPT364 | BF4: ZPT240 | BG4: ZPT274 | BH4: ZPT308 | BJ4: 60 | BK4: 40 | BL4: 6 | BQ4: A2 | BR4: # | BS4: # | BT4: # | BU4: # | BV4: 626 | BW4: 626 | BX4: 680 | BY4: 680 | BZ4: 680 | CA4: 680 | CB4: # | CC4: # | CD4: # | CE4: # | CF4: # | CG4: # | CH4: # | CI4: # | CJ4: # | CK4: # | CL4: #
B5: =MID($B$2,8,2) -> D9 | C5: HWC | D5: =MID($B$2,24,1) -> 0 | E5: ELEC | F5: =MID($B$2,25,1) -> 0 | G5: FUR | H5: =MID($B$2,26,2) -> 00 | I5: Damper | J5: =MID($B$2,32,1) -> B | P5: LCO | W5: # | Y5: # | AA5: # | AM5: PRO | AN5: 48 | AO5: 67 | AP5: 75.8 | AQ5: 75.6 | AR5: 88 | AS5: 87 | AT5: 75.8 | AU5: 88.8 | AV5: 88 | AW5: 95 | AX5: 135 | AY5: 136 | AZ5: 138 | BA5: 146 | BB5: 283 | BC5: 289 | BD5: 276 | BE5: 292 | BF5: 289 | BG5: 276 | BH5: 292 | BJ5: 72 | BK5: 40 | BL5: 6 | BQ5: B1 | BR5: 463 | BS5: 463 | BT5: 463 | BU5: 436 | BV5: 463 | BW5: 463 | BX5: # | BY5: # | BZ5: # | CA5: # | CB5: # | CC5: # | CD5: # | CE5: # | CF5: # | CG5: # | CH5: # | CI5: # | CJ5: # | CK5: # | CL5: #
P6: 6-row | AM6: PRR | AN6: 48 | AO6: 67 | AP6: 75.8 | AQ6: 88.8 | AR6: 88 | AS6: 87 | AT6: 75.8 | AU6: 88 | AV6: 87 | AW6: 127 | AX6: 135 | AY6: 138 | AZ6: 146 | BA6: 146 | BB6: 283 | BC6: 289 | BD6: 276 | BE6: 292 | BF6: 289 | BG6: 276 | BH6: 292 | BJ6: 84 | BK6: 61 | BL6: 10 | BQ6: B2 | BR6: # | BS6: # | BT6: # | BU6: # | BV6: 626 | BW6: 626 | BX6: 680 | BY6: 680 | BZ6: 680 | CA6: 680 | CB6: # | CC6: # | CD6: # | CE6: # | CF6: # | CG6: # | CH6: # | CI6: # | CJ6: # | CK6: # | CL6: #
A7: Component | B7: Description | C7: Wi | D7: X | E7: Y | F7: Z | G7: Y/N | H7: +/- weight | P7: PRO | Q7: 35 | R7: 35 | S7: 35 | T7: 57 | U7: 57 | V7: 57 | W7: 83 | X7: 83 | Y7: 83 | Z7: 120 | AA7: 120 | AB7: 145 | AC7: 190 | AD7: 190 | AE7: 340 | AF7: 340 | AG7: 340 | AH7: 340 | AI7: 675 | AJ7: 675 | AK7: 750 | AM7: LCO | AT7: 40 | AV7: =(AT7+AV5)/2 -> 64 | AX7: =(AT7+AZ6)/2 -> 93 | AY7: 127 | AZ7: 127 | BJ7: 96 | BK7: 61 | BL7: 10 | BQ7: B3 | BR7: # | BS7: # | BT7: # | BU7: # | BV7: # | BW7: # | BX7: # | BY7: # | BZ7: 1050 | CA7: 1050 | CB7: 1050 | CC7: 1050 | CD7: # | CE7: # | CF7: # | CG7: # | CH7: # | CI7: # | CJ7: # | CK7: # | CL7: #
A8: Evaporator | B8: =IF(F4="","",VLOOKUP($F$4,$Z$15:$AA$17,2,FALSE)) -> 6-Row Evap. | C8: =IF($F$4="","",IF($K$4="0",IF(F4="A",IF(G8="y",INDEX(Q3:AK4,MATCH(LEFT(B4,3),P3:P4,0),MATCH(C4,Q2:AK2,0))+H8,""),IF(G8="y",INDEX(Q7:AK9,MATCH(LEFT(B4,3),P7:P9,0),MATCH(C4,Q2:AK2,0))+H8,"")),IF(F4="A",IF(G8="y",HLOOKUP(C4,$Q$2:$AK$9,3,FALSE)+H8,""),IF(G8="y",HLOOKUP(C4,$Q$2:$AK$9,7,FALSE)+H8,"")))) -> 460 | D8: =IF($J$4="000",INDEX($Q$16:$S$25,MATCH($D$4,$P$16:$P$25,0),MATCH(D7,$Q$15:$S$15,0)),INDEX($V$16:$X$25,MATCH($D$4,$P$16:$P$25,0),MATCH(D7,$Q$15:$S$15,0))) -> 32 | E8: =IF($J$4="000",INDEX($Q$16:$S$25,MATCH($D$4,$P$16:$P$25,0),MATCH(E7,$Q$15:$S$15,0)),INDEX($V$16:$X$25,MATCH($D$4,$P$16:$P$25,0),MATCH(E7,$Q$15:$S$15,0))) -> 48 | F8: =IF($J$4="000",INDEX($Q$16:$S$25,MATCH($D$4,$P$16:$P$25,0),MATCH(F7,$Q$15:$S$15,0)),INDEX($V$16:$X$25,MATCH($D$4,$P$16:$P$25,0),MATCH(F7,$Q$15:$S$15,0))) -> 63 | G8: y | H8: 0 | P8: PRR | Q8: 83 | R8: 83 | S8: 83 | T8: 120 | U8: 120 | V8: 120 | W8: 145 | X8: 145 | Y8: 190 | Z8: 190 | AA8: 190 | AB8: 340 | AC8: 340 | AD8: 340 | AE8: 675 | AF8: 675 | AG8: 675 | AH8: 750 | AI8: 675 | AJ8: 675 | AK8: 750 | BJ8: 120 | BK8: 80 | BL8: 12 | BQ8: B4 | BR8: # | BS8: # | BT8: # | BU8: # | BV8: # | BW8: # | BX8: # | BY8: # | BZ8: 987 | CA8: 987 | CB8: 950 | CC8: # | CD8: # | CE8: # | CF8: # | CG8: # | CH8: # | CI8: # | CJ8: # | CK8: # | CL8: #
A9: Supply Blower | B9: =IF(RIGHT($I$4,1)="M","ECM",VLOOKUP(LEFT(I4,2),Z27:AB80,2,FALSE)&" inch FAN"&"; "&VLOOKUP(RIGHT(I4,1),AF27:AH40,2,FALSE)&"HP") -> 18 inch FAN; 5HP | C9: =IF(LEFT(I4,1)="E",VLOOKUP(LEFT(I4,2),Z27:AB80,3,FALSE)+2*VLOOKUP(RIGHT(I4,1),AF27:AH40,3,FALSE),VLOOKUP(LEFT(I4,2),Z27:AB80,3,FALSE)+VLOOKUP(RIGHT(I4,1),AF27:AH40,3,FALSE)) -> 146.92 | D9: =IF($J$4="000",INDEX($Q$29:$S$38,MATCH($D$4,$P$29:$P$38,0),MATCH(D$7,$Q$28:$S$28,0)),INDEX($V$29:$X$38,MATCH($D$4,$U$29:$U$38,0),MATCH(D$7,$V$28:$X$28,0))) -> 101 | E9: =IF($J$4="000",INDEX($Q$29:$S$38,MATCH($D$4,$P$29:$P$38,0),MATCH(E$7,$Q$28:$S$28,0)),INDEX($V$29:$X$38,MATCH($D$4,$U$29:$U$38,0),MATCH(E$7,$V$28:$X$28,0))) -> 48 | F9: =IF($J$4="000",INDEX($Q$29:$S$38,MATCH($D$4,$P$29:$P$38,0),MATCH(F$7,$Q$28:$S$28,0)),INDEX($V$29:$X$38,MATCH($D$4,$U$29:$U$38,0),MATCH(F$7,$V$28:$X$28,0))) -> 46 | G9: y | H9: 0 | P9: LCO | W9: 283 | Y9: 283 | AA9: 320 | AB9: 460 | AC9: 460 | AM9: PRO/PRR | AN9: 36 | AO9: 48 | AP9: 60 | AQ9: 72 | AR9: 84 | AS9: 96 | AT9: 120 | AU9: 150 | AV9: 180 | AW9: 210 | AX9: 240 | AY9: 300 | AZ9: 360 | BA9: 420 | BB9: 480 | BC9: 540 | BD9: 600 | BE9: 660 | BF9: 720 | BG9: 780 | BH9: 840 | BJ9: 150 | BK9: 80 | BL9: 12 | BQ9: C2 | BR9: # | BS9: # | BT9: # | BU9: # | BV9: 626 | BW9: 626 | BX9: 700 | BY9: 700 | BZ9: 700 | CA9: 700 | CB9: 838 | CC9: # | CD9: # | CE9: # | CF9: # | CG9: # | CH9: # | CI9: # | CJ9: # | CK9: # | CL9: #
A10: Comp 1 | B10: =IF($F$4="","",IF($K$4="0",IF(G10="y",INDEX($AN$3:$BH$7,MATCH(LEFT(B4,3),AM3:AM7,0),MATCH(C4,AN2:BH2,0)),""),IF(G10="y",HLOOKUP(C4,$AN$2:$BH$7,3,FALSE),""))) -> 127 | C10: =IF($F$4="","",IF($K$4="0",IF(G10="y",INDEX($AN$5:$BH$7,MATCH(LEFT(B4,3),AM5:AM7,0),MATCH(C4,AN2:BH2,0))+H10,""),IF(G10="y",HLOOKUP(C4,$AN$2:$BH$7,5,FALSE)+H10,""))) -> 127 | D10: =IF($J$4="000",INDEX($Q$68:$S$77,MATCH($D$4,$P$68:$P$77,0),MATCH(D$7,$Q$67:$S$67,0)),INDEX($V$68:$X$77,MATCH($D$4,$U$68:$U$77,0),MATCH(D$7,$V$67:$X$67,0))) -> 97 | E10: =IF($J$4="000",INDEX($Q$68:$S$77,MATCH($D$4,$P$68:$P$77,0),MATCH(E$7,$Q$67:$S$67,0)),INDEX($V$68:$X$77,MATCH($D$4,$U$68:$U$77,0),MATCH(E$7,$V$67:$X$67,0))) -> 12 | F10: =IF($J$4="000",INDEX($Q$68:$S$77,MATCH($D$4,$P$68:$P$77,0),MATCH(F$7,$Q$67:$S$67,0)),INDEX($V$68:$X$77,MATCH($D$4,$U$68:$U$77,0),MATCH(F$7,$V$67:$X$67,0))) -> 32 | G10: =IF(RIGHT(B4,1)="F","n","y") -> y | H10: 0 | AM10: Copper Parts | AN10: 182.4 | AO10: 186.048 | AP10: 189.76896 | AQ10: 193.5643392 | AR10: 197.435626 | AS10: 201.3843385 | AT10: 205.4120253 | AU10: 209.5202658 | AV10: 213.7106711 | AW10: 217.9848845 | AX10: 222.3445822 | AY10: 231.3273033 | AZ10: 235.9538494 | BA10: 240.6729264 | BB10: 245.4863849 | BC10: 250.3961126 | BD10: 255.4040349 | BE10: 260.5121156 | BF10: =$BE10*1.15 -> 299.5889329 | BG10: =$BE10*1.15 -> 299.5889329 | BH10: 299.5889329 | BJ10: 180 | BK10: 122 | BL10: 20 | BQ10: C3 | BR10: # | BS10: # | BT10: # | BU10: # | BV10: # | BW10: # | BX10: # | BY10: # | BZ10: 1050 | CA10: 1050 | CB10: 1050 | CC10: 1050 | CD10: # | CE10: # | CF10: # | CG10: # | CH10: # | CI10: # | CJ10: # | CK10: # | CL10: #
A11: Comp 2 | B11: =IF($C$4>96,B10,"") -> 127 | C11: =IF($C$4>96,C10,"") -> 127 | D11: =IF($J$4="000",INDEX($Q$81:$S$90,MATCH($D$4,$P$81:$P$90,0),MATCH(D$7,$Q$80:$S$80,0)),INDEX($V$81:$X$90,MATCH($D$4,$U$81:$U$90,0),MATCH(D$7,$V$80:$X$80,0))) -> 113 | E11: =IF($J$4="000",INDEX($Q$81:$S$90,MATCH($D$4,$P$81:$P$90,0),MATCH(E$7,$Q$80:$S$80,0)),INDEX($V$81:$X$90,MATCH($D$4,$U$81:$U$90,0),MATCH(E$7,$V$80:$X$80,0))) -> 12 | F11: =IF($J$4="000",INDEX($Q$81:$S$90,MATCH($D$4,$P$81:$P$90,0),MATCH(F$7,$Q$80:$S$80,0)),INDEX($V$81:$X$90,MATCH($D$4,$U$81:$U$90,0),MATCH(F$7,$V$80:$X$80,0))) -> 32 | G11: y | H11: 0 | AM11: Accum1 | AN11: 11.3 | AO11: 11.3 | AP11: 11.3 | AQ11: 14.5 | AR11: 14.5 | AS11: 14.5 | AT11: 11.3 | AU11: 14.5 | AV11: 14.5 | AW11: 14.5 | AX11: 14.5 | AY11: 18 | AZ11: 18 | BA11: 18 | BB11: 20.5 | BC11: 20.5 | BD11: 20.5 | BE11: 20.5 | BF11: =$BE11*1.15 -> 23.575 | BG11: 23.575 | BH11: 23.575 | BJ11: 210 | BK11: 144 | BL11: 20 | BQ11: C4 | BR11: # | BS11: # | BT11: # | BU11: # | BV11: # | BW11: # | BX11: # | BY11: # | BZ11: 1114 | CA11: 1114 | CB11: 1114 | CC11: 1114 | CD11: 1114 | CE11: 1114 | CF11: # | CG11: # | CH11: # | CI11: # | CJ11: # | CK11: # | CL11: #
A12: A/S Condenser Section | C12: =IF($F$4="","",IF(OR(RIGHT($B$4,1)="A",RIGHT($B$4,1)="H"),IF($G$12="y",INDEX($BR$3:$CL$39,MATCH($B$5,$BQ$3:$BQ$39,0),MATCH($C$4,$BR$2:$CL$2,0))+$H$12,""))) -> 1271 | D12: =IF($J$4="000",INDEX($BK$46:$BM$89,MATCH($B$5,$BJ$46:$BJ$89,0),MATCH(D$7,$BK$45:$BM$45,0)),INDEX($BN$46:$BP$89,MATCH($B$5,$BJ$46:$BJ$89,0),MATCH(D$7,$BN$45:$BP$45,0))) -> 191 | E12: =IF($J$4="000",INDEX($BK$46:$BM$89,MATCH($B$5,$BJ$46:$BJ$89,0),MATCH(E$7,$BK$45:$BM$45,0)),INDEX($BN$46:$BP$89,MATCH($B$5,$BJ$46:$BJ$89,0),MATCH(E$7,$BN$45:$BP$45,0))) -> 44 | F12: =IF($J$4="000",INDEX($BK$46:$BM$89,MATCH($B$5,$BJ$46:$BJ$89,0),MATCH(F$7,$BK$45:$BM$45,0)),INDEX($BN$46:$BP$89,MATCH($B$5,$BJ$46:$BJ$89,0),MATCH(F$7,$BN$45:$BP$45,0))) -> 75 | G12: y | H12: 0 | AM12: Oil Sep 1 | AN12: 6 | AO12: 6 | AP12: 6 | AQ12: 6 | AR12: 6 | AS12: 6 | AT12: 12 | AU12: 12 | AV12: 12 | AW12: 12 | AX12: 14 | AY12: 14 | AZ12: 14 | BA12: 16 | BB12: 16 | BC12: 16 | BD12: 16 | BE12: 16 | BF12: 18.4 | BG12: 18.4 | BH12: 18.4 | BJ12: 240 | BK12: 160 | BL12: 24 | BQ12: C6 | BR12: # | BS12: # | BT12: # | BU12: # | BV12: # | BW12: # | BX12: # | BY12: # | BZ12: # | CA12: # | CB12: # | CC12: 1316 | CD12: 1316 | CE12: 1316 | CF12: # | CG12: # | CH12: # | CI12: # | CJ12: # | CK12: # | CL12: #
A13: W/S Condenser | B13: =IF(OR(RIGHT($B$4,1)="W",RIGHT($B$4,1)="G"),"Water Source","") ->  | C13: =IF($F$4="","",IF(OR(RIGHT($B$4,1)="W",RIGHT($B$4,1)="G"),VLOOKUP($C$4,$BJ$1:$BL$22,2,FALSE)+H13,"")) ->  | D13: =IF($J$4="000",INDEX($Q$94:$S$103,MATCH($D$4,$P$94:$P$103,0),MATCH(D$7,$Q$93:$S$93,0)),INDEX($V$94:$X$103,MATCH($D$4,$U$94:$U$103,0),MATCH(D$7,$V$93:$X$93,0))) -> 148 | E13: =IF($J$4="000",INDEX($Q$94:$S$103,MATCH($D$4,$P$94:$P$103,0),MATCH(E$7,$Q$93:$S$93,0)),INDEX($V$94:$X$103,MATCH($D$4,$U$94:$U$103,0),MATCH(E$7,$V$93:$X$93,0))) -> 44 | F13: =IF($J$4="000",INDEX($Q$94:$S$103,MATCH($D$4,$P$94:$P$103,0),MATCH(F$7,$Q$93:$S$93,0)),INDEX($V$94:$X$103,MATCH($D$4,$U$94:$U$103,0),MATCH(F$7,$V$93:$X$93,0))) -> 45 | G13: y | H13: 0 | AM13: Receiver 1 | AN13: 11.3 | AO13: 11.3 | AP13: 11.3 | AQ13: 14.5 | AR13: 14.5 | AS13: 14.5 | AT13: 11.3 | AU13: 14.5 | AV13: 14.5 | AW13: 14.5 | AX13: 14.5 | AY13: 18 | AZ13: 18 | BA13: 18 | BB13: 20.5 | BC13: 20.5 | BD13: 20.5 | BE13: 20.5 | BF13: 23.575 | BG13: 23.575 | BH13: 23.575 | BJ13: 300 | BK13: 216 | BL13: 30 | BQ13: K5 | BR13: # | BS13: # | BT13: # | BU13: # | BV13: # | BW13: # | BX13: # | BY13: # | BZ13: =BZ10-200 -> 850 | CA13: # | CB13: # | CC13: # | CD13: # | CE13: # | CF13: # | CG13: # | CH13: # | CI13: # | CJ13: # | CK13: # | CL13: #
A14: Copper Parts | C14: =INDEX($AN$10:$BH$12,MATCH($A14,$AM$10:$AM$12,0),MATCH($C$4,$AN$9:$BH$9,0)) -> 235.9538494 | D14: =D10+5 -> 102 | E14: =E10 -> 12 | F14: =F10 -> 32 | G14: y | H14: 0 | AM14: Heat Pump | AN14: 10 | AO14: 10 | AP14: 10 | AQ14: 10 | AR14: 12 | AS14: 12 | AT14: 20 | AU14: 20 | AV14: 24 | AW14: 24 | AX14: 36 | AY14: 36 | AZ14: 36 | BA14: 36 | BB14: 36 | BC14: 36 | BD14: 54 | BE14: 54 | BF14: 62.1 | BG14: 62.1 | BH14: 62.1 | BJ14: 360 | BK14: 240 | BL14: 36 | BQ14: K4 | BR14: # | BS14: # | BT14: # | BU14: # | BV14: # | BW14: # | BX14: # | BY14: # | BZ14: # | CA14: # | CB14: =CB11-540 -> 574 | CC14: # | CD14: # | CE14: # | CF14: # | CG14: # | CH14: # | CI14: # | CJ14: # | CK14: # | CL14: #
A15: Accum1 | C15: =IF($C$10="","",IF(OR(LEFT($B$4,3)="PRO",RIGHT($B$4,1)="H"),INDEX($AN$10:$BH$12,MATCH($A15,$AM$10:$AM$12,0),MATCH($C$4,$AN$9:$BH$9,0)),"")) ->  | D15: =D10-5 -> 92 | E15: 20 | F15: 12 | G15: y | H15: 0 | P15: Evap | Q15: x | R15: y | S15: z | U15: Evap | V15: x | W15: y | X15: z | Z15: A | AA15: 4-Row Evap. | AM15: Elec. Box | AN15: 150 | AO15: 153 | AP15: 156.06 | AQ15: 159.1812 | AR15: 162.364824 | AS15: 165.6121205 | AT15: 168.9243629 | AU15: 172.3028501 | AV15: 175.7489072 | AW15: 179.2638853 | AX15: 182.849163 | AY15: 190.2362692 | AZ15: 194.0409946 | BA15: 197.9218145 | BB15: 201.8802507 | BC15: 205.9178558 | BD15: 210.0362129 | BE15: 214.2369371 | BF15: 246.3724777 | BG15: 246.3724777 | BH15: 246.3724777 | BJ15: 420 | BK15: 240 | BL15: 36 | BQ15: K6 | BR15: # | BS15: # | BT15: # | BU15: # | BV15: # | BW15: # | BX15: # | BY15: # | BZ15: # | CA15: # | CB15: # | CC15: 1316 | CD15: 1316 | CE15: 1316 | CF15: # | CG15: # | CH15: # | CI15: # | CJ15: # | CK15: # | CL15: #
A16: Accum2 | C16: =IF($C$4>96,C15,"") ->  | D16: =IF(C16="","-",D11+5) -> - | E16: 20 | F16: 12 | G16: y | H16: 0 | P16: A | Q16: 24 | R16: 38 | S16: 40 | U16: A | V16: 60 | W16: 38 | X16: 40 | Z16: B | AA16: 6-Row Evap. | BJ16: 480 | BK16: 288 | BL16: 40 | BQ16: D4 | BR16: # | BS16: # | BT16: # | BU16: # | BV16: # | BW16: # | BX16: # | BY16: # | BZ16: # | CA16: # | CB16: 1114 | CC16: 1114 | CD16: 1114 | CE16: 1114 | CF16: 1114 | CG16: # | CH16: # | CI16: # | CJ16: # | CK16: # | CL16: #
A17: Oil Sep 1 | C17: =IF($C$10="","",IF(OR(LEFT($B$4,3)="PRO",RIGHT($B$4,1)="H"),INDEX($AN$10:$BH$12,MATCH($A17,$AM$10:$AM$12,0),MATCH($C$4,$AN$9:$BH$9,0)),"")) ->  | D17: =D10+5 -> 102 | E17: 10 | F17: 8 | G17: y | H17: 0 | P17: B | Q17: 22.5 | R17: 38 | S17: 43 | U17: B | V17: 62 | W17: 38 | X17: 43 | BJ17: 540 | BK17: 320 | BL17: 48 | BQ17: D6 | BR17: # | BS17: # | BT17: # | BU17: # | BV17: # | BW17: # | BX17: # | BY17: # | BZ17: # | CA17: # | CB17: # | CC17: 1316 | CD17: 1316 | CE17: 1316 | CF17: 1472 | CG17: # | CH17: # | CI17: # | CJ17: # | CK17: # | CL17: #
A18: Oil Sep 2 | C18: =IF($C$4>96,C17,"") ->  | D18: =IF(C18="","-",D14+5) -> - | E18: 10 | F18: 8 | G18: y | H18: 0 | P18: C | Q18: 26 | R18: 38 | S18: 43 | U18: C | V18: 72 | W18: 38 | X18: 43 | BJ18: 600 | BK18: 384 | BL18: 56 | BQ18: D8 | BR18: # | BS18: # | BT18: # | BU18: # | BV18: # | BW18: # | BX18: # | BY18: # | BZ18: # | CA18: # | CB18: # | CC18: # | CD18: # | CE18: # | CF18: # | CG18: # | CH18: # | CI18: # | CJ18: # | CK18: # | CL18: #
A19: Elec. Box | C19: =IF($G$2="4",INDEX($AN$10:$BH$18,MATCH($A19,$AM$10:$AM$18,0),MATCH($C$4,$AN$9:$BH$9,0))*1.2+H19,INDEX($AN$10:$BH$18,MATCH($A19,$AM$10:$AM$18,0),MATCH($C$4,$AN$9:$BH$9,0))*1.2*1.5+H19) -> 349.2737902 | D19: =D10+5 -> 102 | E19: =E10+5 -> 17 | F19: =F9 -> 46 | G19: y | H19: 0 | P19: K | Q19: 46 | R19: 38 | S19: 43 | U19: C | V19: 92 | W19: 38 | X19: 43 | AM19: CWC | AN19: 36 | AO19: 48 | AP19: 60 | AQ19: 72 | AR19: 84 | AS19: 96 | AT19: 120 | AU19: 150 | AV19: 180 | AW19: 210 | AX19: 240 | AY19: 300 | AZ19: 360 | BA19: 420 | BB19: 480 | BC19: 540 | BD19: 600 | BE19: 660 | BF19: 720 | BG19: 780 | BH19: 840 | BJ19: 660 | BK19: 488 | BL19: 80 | BQ19: D9 | BR19: # | BS19: # | BT19: # | BU19: # | BV19: # | BW19: # | BX19: # | BY19: # | BZ19: # | CA19: # | CB19: # | CC19: =CC16+CC16/2-400 -> 1271 | CD19: =CD16+CD16/2-400 -> 1271 | CE19: # | CF19: # | CG19: # | CH19: # | CI19: # | CJ19: # | CK19: # | CL19: #
A20: Sheet Metal | B20: =B5 -> D9 | C20: =IF($J$4="000",H20+INDEX($BT$46:$BV$89,MATCH($B$5,$BS$46:$BS$89,0),MATCH(C$7,$BT$45:$BV$45,0)),INDEX($BW$46:$BY$89,MATCH($B$5,$BS$46:$BS$89,0),MATCH(C$7,$BW$45:$BY$45,0))) -> 1950 | D20: =IF($J$4="000",INDEX($Q$107:$S$116,MATCH($D$4,$P$107:$P$116,0),MATCH(D$7,$Q$106:$S$106,0)),INDEX($V$107:$X$116,MATCH($D$4,$U$107:$U$116,0),MATCH(D$7,$V$106:$X$106,0))) -> 55 | E20: =IF($J$4="000",INDEX($Q$107:$S$116,MATCH($D$4,$P$107:$P$116,0),MATCH(E$7,$Q$106:$S$106,0)),INDEX($V$107:$X$116,MATCH($D$4,$U$107:$U$116,0),MATCH(E$7,$V$106:$X$106,0))) -> 44 | F20: =IF($J$4="000",INDEX($Q$107:$S$116,MATCH($D$4,$P$107:$P$116,0),MATCH(F$7,$Q$106:$S$106,0)),INDEX($V$107:$X$116,MATCH($D$4,$U$107:$U$116,0),MATCH(F$7,$V$106:$X$106,0))) -> 65 | G20: y | H20: 0 | P20: D | Q20: 32 | R20: 48 | S20: 63 | U20: D | V20: 100 | W20: 48 | X20: 63 | AM20: PRO | AN20: 46 | AO20: 46 | AP20: 46 | AQ20: 65 | AR20: 65 | AS20: 65 | AT20: 92 | AU20: 92 | AV20: 92 | AW20: 122 | AX20: 122 | AY20: 135 | AZ20: 176 | BA20: 176 | BB20: 294 | BC20: 294 | BD20: 294 | BE20: 294 | BF20: 467 | BG20: 467 | BH20: 526 | BJ20: 720 | BK20: 540 | BL20: 120 | BQ20: E4 | BR20: # | BS20: # | BT20: # | BU20: # | BV20: # | BW20: # | BX20: # | BY20: # | BZ20: # | CA20: # | CB20: # | CC20: # | CD20: # | CE20: # | CF20: # | CG20: # | CH20: # | CI20: # | CJ20: # | CK20: # | CL20: #
A21: ECW Wheel | B21: =IF($K$4="0","","ECW"&VLOOKUP($K$4,$AZ$33:$BB$54,2,FALSE)) ->  | C21: =IF($K$4="0","",VLOOKUP($K$4,$AZ$33:$BB$54,3,FALSE)+H21) ->  | D21: =IF($K$4="0",0,INDEX($V$55:$X$64,MATCH($D$4,$U$55:$U$64,0),MATCH(D$7,$V$54:$X$54,0))) -> 0 | E21: =IF($K$4="0",0,INDEX($V$55:$X$64,MATCH($D$4,$U$55:$U$64,0),MATCH(E$7,$V$54:$X$54,0))) -> 0 | F21: =IF($K$4="0",0,INDEX($V$55:$X$64,MATCH($D$4,$U$55:$U$64,0),MATCH(F$7,$V$54:$X$54,0))) -> 0 | G21: y | H21: 0 | P21: E | Q21: 31 | R21: 55 | S21: 54 | U21: E | V21: 125 | W21: 55 | X21: 54 | AM21: PRR | AN21: 92 | AO21: 92 | AP21: 92 | AQ21: 122 | AR21: 122 | AS21: 122 | AT21: 135 | AU21: 135 | AV21: 176 | AW21: 176 | AX21: 176 | AY21: 294 | AZ21: 294 | BA21: 294 | BB21: 467 | BC21: 467 | BD21: 467 | BE21: 526 | BF21: 661 | BG21: 661 | BH21: 746 | BJ21: 780 | BK21: 600 | BL21: 150 | BQ21: E6 | BR21: # | BS21: # | BT21: # | BU21: # | BV21: # | BW21: # | BX21: # | BY21: # | BZ21: # | CA21: # | CB21: # | CC21: # | CD21: # | CE21: # | CF21: 1754 | CG21: 1754 | CH21: 1754 | CI21: 1754 | CJ21: 1754 | CK21: 1754 | CL21: 1754
A22: Exhaust Blower | B22: =IF(RIGHT($J$4,1)="M","ECM",IF($J$4="000","",VLOOKUP(LEFT(J4,2),AC27:AE80,2,FALSE)&" inch FAN"&"; "&VLOOKUP(RIGHT(J4,1),AF27:AH40,2,FALSE)&"HP")) ->  | C22: =IF($J$4="000","",IF(LEFT(J4,1)="E",VLOOKUP(LEFT(J4,2),AC27:AE80,3,FALSE)+2*VLOOKUP(RIGHT(J4,1),AF27:AH40,3,FALSE),VLOOKUP(LEFT(J4,2),AC27:AE80,3,FALSE)+VLOOKUP(RIGHT(J4,1),AF27:AH40,3,FALSE))) ->  | D22: =IF($J$4="000","",INDEX($V$42:$X$51,MATCH($D$4,$U$42:$U$51,0),MATCH(D$7,$V$41:$X$41,0))) ->  | E22: =IF($J$4="000","",INDEX($V$42:$X$51,MATCH($D$4,$U$42:$U$51,0),MATCH(E$7,$V$41:$X$41,0))) ->  | F22: =IF($J$4="000","",INDEX($V$42:$X$51,MATCH($D$4,$U$42:$U$51,0),MATCH(F$7,$V$41:$X$41,0))) ->  | G22: y | H22: 0 | P22: F | Q22: 22.5 | R22: 38 | S22: 43 | U22: F | V22: 62 | W22: 38 | X22: 43 | BJ22: 840 | BK22: 600 | BL22: 150 | BQ22: E8 | BR22: # | BS22: # | BT22: # | BU22: # | BV22: # | BW22: # | BX22: # | BY22: # | BZ22: # | CA22: # | CB22: # | CC22: # | CD22: # | CE22: # | CF22: 2000 | CG22: 2000 | CH22: 2000 | CI22: 2000 | CJ22: 2000 | CK22: 2000 | CL22: 2000
A23: Receiver 1 | C23: =IF($C$10="","",IF(OR(LEFT($B$4,3)="PRO",RIGHT($B$4,1)="H"),INDEX($AN$10:$BH$18,MATCH($A23,$AM$10:$AM$18,0),MATCH($C$4,$AN$9:$BH$9,0)),"")) ->  | D23: =D10+5 -> 102 | E23: =E15-3 -> 17 | F23: =F15-3 -> 9 | G23: y | H23: 0 | P23: G | Q23: 26 | R23: 38 | S23: 43 | U23: G | V23: 72 | W23: 38 | X23: 43 | AM23: 6-row | BQ23: E9 | BR23: # | BS23: # | BT23: # | BU23: # | BV23: # | BW23: # | BX23: # | BY23: # | BZ23: # | CA23: # | CB23: # | CC23: # | CD23: # | CE23: # | CF23: # | CG23: # | CH23: # | CI23: # | CJ23: # | CK23: # | CL23: #
A24: Receiver 2 | C24: =IF($C$4>96,C23,"") ->  | D24: =IF(C24="","-",D23+5) -> - | E24: =IF(C24="","-",E20+5) -> - | F24: =IF(C24="","-",F20+5) -> - | G24: y | H24: 0 | P24: H | Q24: 32 | R24: 48 | S24: 63 | U24: H | V24: 100 | W24: 48 | X24: 63 | AM24: PRO | AN24: 59 | AO24: 59 | AP24: 59 | AQ24: 86 | AR24: 86 | AS24: 86 | AT24: 124 | AU24: 124 | AV24: 124 | AW24: 165 | AX24: 165 | AY24: 182 | AZ24: 240 | BA24: 240 | BB24: 408 | BC24: 408 | BD24: 408 | BE24: 408 | BF24: 661 | BG24: 661 | BH24: 746 | BQ24: F1 | BR24: 463 | BS24: 463 | BT24: 463 | BU24: 436 | BV24: 463 | BW24: 463 | BX24: # | BY24: # | BZ24: # | CA24: # | CB24: # | CC24: # | CD24: # | CE24: # | CF24: # | CG24: # | CH24: # | CI24: # | CJ24: # | CK24: # | CL24: #
G25: n | H25: 0 | P25: J | Q25: 60 | R25: 55 | S25: 54 | U25: J | V25: 125 | W25: 55 | X25: 54 | Z25: SUPPLY | AC25: EXHAUST BWLR | AF25: S. MOTOR | AM25: PRR | AN25: 124 | AO25: 124 | AP25: 124 | AQ25: 165 | AR25: 165 | AS25: 165 | AT25: 182 | AU25: 182 | AV25: 240 | AW25: 240 | AX25: 240 | AY25: 408 | AZ25: 408 | BA25: 408 | BB25: 484 | BC25: 661 | BD25: 661 | BE25: 746 | BF25: 661 | BG25: 661 | BH25: 746 | BQ25: F2 | BR25: # | BS25: # | BT25: # | BU25: # | BV25: 626 | BW25: 626 | BX25: 680 | BY25: 680 | BZ25: 680 | CA25: 680 | CB25: # | CC25: # | CD25: # | CE25: # | CF25: # | CG25: # | CH25: # | CI25: # | CJ25: # | CK25: # | CL25: #
A26: CWC | B26: =IF($G$4="","",IF($G$4="C","4-Row CWC","6-Row CWC")) ->  | C26: =IF($G$4="","",IF($K$4="0",IF(G4="C",IF(G26="y",INDEX(AN20:BH21,MATCH(LEFT(B4,3),AM20:AM21,0),MATCH(C4,AN19:BH19,0))+H26,""),IF(G26="y",INDEX(AN24:BH25,MATCH(LEFT(B4,3),AM24:AM25,0),MATCH(C4,AN19:BH19,0))+H26,"")),IF(G4="C",IF(G26="y",HLOOKUP(C4,$AN$19:$BH$25,3,FALSE)+H26,""),IF(G26="y",HLOOKUP(C4,$AN$19:$BH$25,7,FALSE)+H26,"")))) ->  | D26: =D8 -> 32 | E26: =E8 -> 48 | F26: =F8 -> 63 | G26: y | H26: 0 | Z26: 14-15 | AA26: TYPE | AB26: Wt | AC26: 32-33 | AD26: TYPE | AE26: Wt | AF26: 17 | AG26: HP | AH26: Wt. | BQ26: F3 | BR26: # | BS26: # | BT26: # | BU26: # | BV26: # | BW26: # | BX26: # | BY26: # | BZ26: 1050 | CA26: 1050 | CB26: 1050 | CC26: 1050 | CD26: # | CE26: # | CF26: # | CG26: # | CH26: # | CI26: # | CJ26: # | CK26: # | CL26: #
A27: HWC | B27: =IF($C$27="","","2-ROW HWC") ->  | C27: =IF($D$5="F",IF($K$4="0",IF($G$27="y",INDEX($AN$28:$BH$29,MATCH(LEFT(B4,3),$AM$28:$AM$29,0),MATCH($C$4,$AN$27:$BH$27,0)+$H$27),""),HLOOKUP($C$4,$AN$27:$BE$29,3)),"") ->  | D27: =D8-5 -> 27 | E27: =E8 -> 48 | F27: =F8 -> 63 | G27: y | H27: 0 | Z27: 0 | AA27: 0 | AB27: 0 | AC27: 0 | AD27: 0 | AE27: 0 | AF27: 0 | AG27: 0 | AH27: 0 | AM27: HWC | AN27: 36 | AO27: 48 | AP27: 60 | AQ27: 72 | AR27: 84 | AS27: 96 | AT27: 120 | AU27: 150 | AV27: 180 | AW27: 210 | AX27: 240 | AY27: 300 | AZ27: 360 | BA27: 420 | BB27: 480 | BC27: 540 | BD27: 600 | BE27: 660 | BF27: 720 | BG27: 780 | BH27: 840 | BQ27: F4 | BR27: # | BS27: # | BT27: # | BU27: # | BV27: # | BW27: # | BX27: # | BY27: # | BZ27: 987 | CA27: 987 | CB27: 950 | CC27: # | CD27: # | CE27: # | CF27: # | CG27: # | CH27: # | CI27: # | CJ27: # | CK27: # | CL27: #
A28: Heat Pump | C28: =IF($F$4="","",IF(OR(RIGHT($B$4,1)="W",RIGHT($B$4,1)="H"),INDEX($AN$10:$BH$18,MATCH($A28,$AM$10:$AM$18,0),MATCH($C$4,$AN$9:$BH$9,0)),"")) ->  | D28: =D14+5 -> 107 | E28: =E14 -> 12 | F28: =F14 -> 32 | G28: y | H28: 0 | P28: Supply | Q28: x | R28: y | S28: z | U28: Supply | V28: x | W28: y | X28: z | Z28: AA | AA28: 10 | AB28: 29.04 | AC28: AA | AD28: 10 | AE28: 29.04 | AF28: A | AG28: 1 | AH28: 34 | AM28: PRO | AN28: 32 | AO28: 32 | AP28: 32 | AQ28: 43 | AR28: 43 | AS28: 43 | AT28: 59 | AU28: 59 | AV28: 59 | AW28: 76 | AX28: 76 | AY28: 84 | AZ28: 108 | BA28: 108 | BB28: 170 | BC28: 170 | BD28: 170 | BE28: 170 | BF28: 255 | BG28: 255 | BH28: 286 | BQ28: G2 | BR28: # | BS28: # | BT28: # | BU28: # | BV28: 626 | BW28: 626 | BX28: 700 | BY28: 700 | BZ28: 700 | CA28: 700 | CB28: 838 | CC28: # | CD28: # | CE28: # | CF28: # | CG28: # | CH28: # | CI28: # | CJ28: # | CK28: # | CL28: #
A29: Reheat/SC | B29: =IF(C29="","",VLOOKUP($H$4,$E$65:$F$85,2,FALSE)) -> RH/SC | C29: =IF($H$4="00","",IF($C$8="","",IF(G29="y",IF(OR($H$4="am",$H$4="cc",$H$4="ch",$H$4="dc",$H$4="dh",$H$4="cd"),C8/2,C8/4)+H29,"NA"))) -> 230 | D29: =D8+15 -> 47 | E29: =E8 -> 48 | F29: =F8 -> 63 | G29: y | H29: 0 | P29: A | Q29: 51 | R29: 38 | S29: 43 | U29: A | V29: 87 | W29: 38 | X29: 40 | Z29: AB | AA29: 11 | AB29: 29.04 | AC29: AB | AD29: 11 | AE29: 29.04 | AF29: B | AG29: 1.5 | AH29: 37.5 | AM29: PRR | AN29: 59 | AO29: 59 | AP29: 59 | AQ29: 76 | AR29: 76 | AS29: 76 | AT29: 84 | AU29: 84 | AV29: 108 | AW29: 108 | AX29: 108 | AY29: 170 | AZ29: 170 | BA29: 170 | BB29: 212 | BC29: 255 | BD29: 255 | BE29: 286 | BF29: 661 | BG29: 661 | BH29: 746 | BJ29: SheetMetal Short Weight | BQ29: G3 | BR29: # | BS29: # | BT29: # | BU29: # | BV29: # | BW29: # | BX29: # | BY29: # | BZ29: 1050 | CA29: 1050 | CB29: 1050 | CC29: 1050 | CD29: # | CE29: # | CF29: # | CG29: # | CH29: # | CI29: # | CJ29: # | CK29: # | CL29: #
G30: y | H30: 0 | P30: B | Q30: 53 | R30: 38 | S30: 43 | U30: B | V30: 95 | W30: 38 | X30: 43 | Z30: AC | AA30: 12 | AB30: 29.04 | AC30: AC | AD30: 12 | AE30: 29.04 | AF30: C | AG30: 2 | AH30: 40 | AM30: LCO | AT30: 84 | AV30: 109 | AX30: 180 | AY30: 220 | AZ30: 220 | BJ30: A | BK30: 135 | BL30: 3.3 | BM30: =BK30*BL30 -> 445.5 | BQ30: G4 | BR30: # | BS30: # | BT30: # | BU30: # | BV30: # | BW30: # | BX30: # | BY30: # | BZ30: 1114 | CA30: 1114 | CB30: 1114 | CC30: 1114 | CD30: 1114 | CE30: 1114 | CF30: # | CG30: # | CH30: # | CI30: # | CJ30: # | CK30: # | CL30: #
A31: Sup Damper | C31: =IF(OR($J$5="0",$J$5="X"),"",IF($D$4="D",50,30)+H31) -> 50 | D31: 3 | E31: =IF(OR($D$4="D",$D$4="E"),44,32) -> 44 | F31: 61 | G31: y | H31: 0 | P31: C | Q31: 65 | R31: 38 | S31: 43 | U31: C | V31: 110 | W31: 38 | X31: 43 | Z31: AD | AA31: 14 | AB31: 43.56 | AC31: AD | AD31: 14 | AE31: 43.56 | AF31: D | AG31: 3 | AH31: 69 | BJ31: B | BK31: 180 | BL31: 3.8 | BM31: =BK31*BL31 -> 684 | BQ31: G6 | BR31: # | BS31: # | BT31: # | BU31: # | BV31: # | BW31: # | BX31: # | BY31: # | BZ31: # | CA31: # | CB31: # | CC31: 1316 | CD31: 1316 | CE31: 1316 | CF31: # | CG31: # | CH31: # | CI31: # | CJ31: # | CK31: # | CL31: #
A32: Ret Damp | C32: =IF(OR($J$5="A",$J$5="B",$J$5="C",$J$5="0",$J$5="X"),"",IF($D$4="D",50,30)+H32) ->  | D32: =D21+10 -> 10 | E32: =IF(OR($D$4="D",$D$4="E"),44,32) -> 44 | F32: 15 | G32: y | H32: 0 | P32: K | Q32: 85 | R32: 38 | S32: 43 | U32: C | V32: 130 | W32: 38 | X32: 43 | Z32: AE | AA32: 16 | AB32: 53.24 | AC32: AE | AD32: 16 | AE32: 53.24 | AF32: E | AG32: 5 | AH32: 84 | AM32: ELEC | AN32: kW | AQ32: Furnace | AZ32: ECW | BJ32: C | BK32: 250 | BL32: 4.7 | BM32: =BK32*BL32 -> 1175 | BQ32: H4 | BR32: # | BS32: # | BT32: # | BU32: # | BV32: # | BW32: # | BX32: # | BY32: # | BZ32: # | CA32: # | CB32: 1114 | CC32: 1114 | CD32: 1114 | CE32: 1114 | CF32: 1316 | CG32: # | CH32: # | CI32: # | CJ32: # | CK32: # | CL32: #
A33: Furnace | B33: =IF(OR($D$4="F",$D$4="G",,$D$4="H",$D$4="J"),"",IF($H$5="00","",IF(D4="e",VLOOKUP($H$5,$AQ$34:$AS$51,2,FALSE)&"MBH",VLOOKUP($H$5,$AQ$34:$AS$43,2,FALSE)&"MBH"))) ->  | C33: =IF(OR($D$4="F",$D$4="G",,$D$4="H",$D$4="J"),"",IF($H$5="00","",IF(D4="E",VLOOKUP($H$5,$AQ$34:$AS$51,3,FALSE)+H33,VLOOKUP($H$5,$AQ$34:$AS$43,3,FALSE))+H33)) ->  | D33: =IF(OR($D$4="F",$D$4="G",,$D$4="H",$D$4="J"),"",IF($J$4="000",INDEX($Q$120:$S$125,MATCH($D$4,$P$120:$P$125,0),MATCH(D$7,$Q$119:$S$119,0)),INDEX($V$120:$X$125,MATCH($D$4,$U$120:$U$125,0),MATCH(D$7,$V$119:$X$119,0)))) -> 101 | E33: =IF(OR($D$4="F",$D$4="G",,$D$4="H",$D$4="J"),"",IF($J$4="000",INDEX($Q$120:$S$125,MATCH($D$4,$P$120:$P$125,0),MATCH(E$7,$Q$119:$S$119,0)),INDEX($V$120:$X$125,MATCH($D$4,$U$120:$U$125,0),MATCH(E$7,$V$119:$X$119,0)))) -> 48 | F33: =IF(OR($D$4="F",$D$4="G",,$D$4="H",$D$4="J"),"",IF($J$4="000",INDEX($Q$120:$S$125,MATCH($D$4,$P$120:$P$125,0),MATCH(F$7,$Q$119:$S$119,0)),INDEX($V$120:$X$125,MATCH($D$4,$U$120:$U$125,0),MATCH(F$7,$V$119:$X$119,0)))) -> 46 | G33: y | P33: D | Q33: 101 | R33: 48 | S33: 46 | U33: D | V33: 171 | W33: 48 | X33: 46 | Z33: AF | AA33: 18 | AB33: 62.92 | AC33: AF | AD33: 18 | AE33: 62.92 | AF33: F | AG33: 7.5 | AH33: 115 | AM33: 0 | AN33: 0 | AO33: 0 | AQ33: 0 | AR33: 0 | AS33: 0 | AU33: 0 | AV33: 0 | AW33: 0 | AZ33: 0 | BA33: 0 | BB33: 0 | BJ33: D | BK33: 541 | BL33: 3.5 | BM33: =BK33*BL33 -> 1893.5 | BQ33: H6 | BR33: # | BS33: # | BT33: # | BU33: # | BV33: # | BW33: # | BX33: # | BY33: # | BZ33: # | CA33: # | CB33: # | CC33: 1316 | CD33: 1316 | CE33: 1316 | CF33: 1472 | CG33: 1472 | CH33: 1472 | CI33: 1472 | CJ33: # | CK33: # | CL33: #
A34: XL Furnace | B34: =IF(OR($D$4="F",$D$4="G",,$D$4="H",$D$4="J"),IF($H$5="00","",VLOOKUP($H$5,$AQ$34:$AS$57,2,FALSE)&"MBH"),"") ->  | C34: =IF(OR($D$4="F",$D$4="G",,$D$4="H",$D$4="J"),IF($H$5="00","",VLOOKUP($H$5,$AQ$34:$AS$57,3,FALSE)+H35),"") ->  | D34: =IF(OR($D$4="F",$D$4="G",,$D$4="H",$D$4="J"),IF($J$4="000",INDEX($Q$126:$S$129,MATCH($D$4,$P$126:$P$129,0),MATCH(D$7,$Q$119:$S$119,0)),INDEX($V$126:$X$129,MATCH($D$4,$U$126:$U$129,0),MATCH(D$7,$V$119:$X$119,0))),"") ->  | E34: =IF(OR($D$4="F",$D$4="G",,$D$4="H",$D$4="J"),IF($J$4="000",INDEX($Q$126:$S$129,MATCH($D$4,$P$126:$P$129,0),MATCH(E$7,$Q$119:$S$119,0)),INDEX($V$126:$X$129,MATCH($D$4,$U$126:$U$129,0),MATCH(E$7,$V$119:$X$119,0))),"") ->  | F34: =IF(OR($D$4="F",$D$4="G",,$D$4="H",$D$4="J"),IF($J$4="000",INDEX($Q$126:$S$129,MATCH($D$4,$P$126:$P$129,0),MATCH(F$7,$Q$119:$S$119,0)),INDEX($V$126:$X$129,MATCH($D$4,$U$126:$U$129,0),MATCH(F$7,$V$119:$X$119,0))),"") ->  | G34: y | H34: 0 | P34: E | Q34: 100 | R34: 54 | S34: 54 | U34: E | V34: 244 | W34: 54 | X34: 54 | Z34: AG | AA34: 20 | AB34: 82.28 | AC34: AG | AD34: 20 | AE34: 82.28 | AF34: G | AG34: 10 | AH34: 128 | AM34: A | AN34: 5 | AO34: 10 | AQ34: A1 | AR34: 75 | AS34: 65 | AU34: A1 | AV34: NA | AW34: 0 | AZ34: A | BA34: 244 | BB34: 70 | BJ34: E | BK34: 1450 | BL34: 3.5 | BM34: =BK34*BL34 -> 5075 | BO34: 232x100x108 | BQ34: H8 | BR34: # | BS34: # | BT34: # | BU34: # | BV34: # | BW34: # | BX34: # | BY34: # | BZ34: # | CA34: # | CB34: # | CC34: # | CD34: # | CE34: # | CF34: 1754 | CG34: 1754 | CH34: 1754 | CI34: 1754 | CJ34: # | CK34: # | CL34: #
A35: Elec Heater | B35: =IF($F$5="0","",VLOOKUP($F$5,$AM$33:$AO$54,2,FALSE)&"kW") ->  | C35: =IF($F$5="0","",VLOOKUP($F$5,$AM$34:$AO$54,3,FALSE)+H35) ->  | D35: =D9 -> 101 | E35: =E9 -> 48 | F35: =F9-20 -> 26 | G35: y | H35: 0 | P35: F | Q35: 53 | R35: 38 | S35: 43 | U35: F | V35: 95 | W35: 38 | X35: 43 | Z35: AH | AA35: 22 | AB35: 106.48 | AC35: AH | AD35: 22 | AE35: 106.48 | AF35: H | AG35: 15 | AH35: 211 | AM35: B | AN35: 10 | AO35: 15 | AQ35: B1 | AR35: 100 | AS35: 75 | AU35: B1 | AV35: NA | AW35: 0 | AZ35: B | BA35: 324 | BB35: 160 | BQ35: H9 | BR35: # | BS35: # | BT35: # | BU35: # | BV35: # | BW35: # | BX35: # | BY35: # | BZ35: # | CA35: # | CB35: # | CC35: =CC32+CC32/2-400 -> 1271 | CD35: =CD32+CD32/2-400 -> 1271 | CE35: # | CF35: # | CG35: # | CH35: # | CI35: # | CJ35: # | CK35: # | CL35: #
A36: Refrigerant | C36: =IF($F$4="","",$C$4/12*2.5) -> 75 | D36: =IF($E$4="0",D13-5,D12-10) -> 181 | E36: =E12 -> 44 | F36: =F12 -> 75 | H36: 0 | P36: G | Q36: 65 | R36: 38 | S36: 43 | U36: G | V36: 110 | W36: 38 | X36: 43 | Z36: AJ | AA36: 25 | AB36: 145.2 | AC36: AJ | AD36: 25 | AE36: 145.2 | AF36: J | AG36: 20 | AH36: 425 | AM36: C | AN36: 15 | AO36: 20 | AQ36: C1 | AR36: 150 | AS36: 103 | AU36: C1 | AV36: NA | AW36: 0 | AZ36: C | BA36: 364 | BB36: 200 | BJ36: SheetMetal Long Weight | BQ36: j4 | BR36: # | BS36: # | BT36: # | BU36: # | BV36: # | BW36: # | BX36: # | BY36: # | BZ36: # | CA36: # | CB36: # | CC36: # | CD36: # | CE36: # | CF36: # | CG36: # | CH36: # | CI36: # | CJ36: # | CK36: # | CL36: #
A37: Condenser Water | C37: =IF(OR(RIGHT($B$4,1)="W",RIGHT($B$4,1)="G"),VLOOKUP($C$4,$BJ$1:$BL$22,3,FALSE)+H37,"") ->  | D37: =D13 -> 148 | E37: =E13 -> 44 | F37: =F13 -> 45 | H37: 0 | P37: H | Q37: 101 | R37: 48 | S37: 46 | U37: H | V37: 171 | W37: 48 | X37: 46 | Z37: AK | AA37: 28 | AB37: 242 | AC37: AK | AD37: 28 | AE37: 242 | AF37: K | AG37: 25 | AH37: 450 | AM37: D | AN37: 20 | AO37: 25 | AQ37: D1 | AR37: 200 | AS37: 123 | AU37: D1 | AV37: NA | AW37: 0 | AZ37: D | BA37: 424 | BB37: 210 | BJ37: A | BK37: 193 | BL37: 3.3 | BM37: =BK37*BL37 -> 636.9 | BQ37: J6 | BR37: # | BS37: # | BT37: # | BU37: # | BV37: # | BW37: # | BX37: # | BY37: # | BZ37: # | CA37: # | CB37: # | CC37: # | CD37: # | CE37: # | CF37: 1754 | CG37: 1754 | CH37: 1754 | CI37: 1754 | CJ37: 1754 | CK37: 1754 | CL37: 1754
A38: CWC Water/Rfg. | C38: =IF(C26="","",VLOOKUP($C$4,$AM$58:$AN$78,2,FALSE)*2) ->  | D38: =D26 -> 32 | E38: 48 | F38: 63 | H38: 0 | P38: J | Q38: 162 | R38: 54 | S38: 54 | U38: J | V38: 244 | W38: 54 | X38: 54 | Z38: BA | AA38: 10 | AB38: 29.04 | AC38: BA | AD38: 10 | AE38: 29.04 | AF38: L | AG38: 30 | AH38: 500 | AM38: E | AN38: 25 | AO38: 30 | AQ38: E1 | AR38: 250 | AS38: 158 | AU38: E1 | AV38: NA | AW38: 0 | AZ38: E | BA38: 484 | BB38: 280 | BJ38: B | BK38: 241 | BL38: 3.8 | BM38: =BK38*BL38 -> 915.8 | BQ38: J8 | BR38: # | BS38: # | BT38: # | BU38: # | BV38: # | BW38: # | BX38: # | BY38: # | BZ38: # | CA38: # | CB38: # | CC38: # | CD38: # | CE38: # | CF38: # | CG38: 2000 | CH38: 2000 | CI38: 2000 | CJ38: 2000 | CK38: 2000 | CL38: 2000
A39: HWC Water | C39: =IF(C27="","",VLOOKUP($C$4,$AM$58:$AN$78,2,FALSE)) ->  | D39: 27 | E39: 48 | F39: 63 | H39: 0 | Z39: BB | AA39: 11 | AB39: 29.04 | AC39: BB | AD39: 11 | AE39: 29.04 | AF39: M | AG39: ECM | AH39: 0 | AM39: F | AN39: 30 | AO39: 35 | AQ39: F1 | AR39: 300 | AS39: 179 | AU39: F1 | AV39: NA | AW39: 0 | AZ39: F | BA39: 486 | BB39: 310 | BJ39: C | BK39: 330 | BL39: 4.7 | BM39: =BK39*BL39 -> 1551 | BQ39: J9 | BR39: # | BS39: # | BT39: # | BU39: # | BV39: # | BW39: # | BX39: # | BY39: # | BZ39: # | CA39: # | CB39: # | CC39: # | CD39: # | CE39: # | CF39: # | CG39: # | CH39: # | CI39: # | CJ39: # | CK39: # | CL39: 2000
D40: X | E40: Y | F40: Z | Z40: BC | AA40: 12 | AB40: 29.04 | AC40: BC | AD40: 12 | AE40: 29.04 | AF40: X | AG40: 0 | AH40: 0 | AM40: G | AN40: 35 | AO40: 40 | AQ40: G1 | AR40: 350 | AS40: 209 | AU40: G1 | AV40: NA | AW40: 0 | AZ40: G | BA40: 544 | BB40: 330 | BJ40: D | BK40: 841 | BL40: 3.5 | BM40: =BK40*BL40 -> 2943.5
A41: Shipping Unit | C41: =SUM(C8:C36)*1.03+H41 -> 5172.812069 | D41: =(SUMPRODUCT((C8:C36),(D8:D36))/SUM(C8:C36))-D44 -> 97.66103556 | E41: =(SUMPRODUCT((C8:C36),(E8:E36))/SUM(C8:C36))-E44 -> 39.66694628 | F41: =(SUMPRODUCT((C8:C36),(F8:F36))/SUM(C8:C36))-F44 -> 62.26886583 | H41: 0 | U41: Exhaust | V41: x | W41: y | X41: z | Z41: BD | AA41: 14 | AB41: 43.56 | AC41: BD | AD41: 14 | AE41: 43.56 | AM41: H | AN41: 40 | AO41: 45 | AQ41: H1 | AR41: 400 | AS41: 222 | AU41: H1 | AV41: NA | AW41: 0 | AZ41: H | BA41: 604 | BB41: 460 | BJ41: E | BK41: 1800 | BL41: 3.5 | BM41: =BK41*BL41 -> 6300 | BO41: 284x100x108
A42: Operating Unit | C42: =C41+SUM(C37:C39) -> 5172.812069 | D42: =((SUMPRODUCT((C8:C36),(D8:D36))+SUMPRODUCT((C37:C39),(D37:D39)))/(SUM(C8:C36)+SUM(C37:C39)))-D44 -> 97.66103556 | E42: =((SUMPRODUCT((C8:C36),(E8:E36))+SUMPRODUCT((C37:C39),(E37:E39)))/(SUM(C8:C36)+SUM(C37:C39)))-E44 -> 39.66694628 | F42: =((SUMPRODUCT((C8:C36),(F8:F36))+SUMPRODUCT((C37:C39),(F37:F39)))/(SUM(C8:C36)+SUM(C37:C39)))-F44 -> 62.26886583 | H42: 0 | U42: A | V42: 15 | W42: 38 | X42: 18 | Z42: BE | AA42: 16 | AB42: 53.24 | AC42: BE | AD42: 16 | AE42: 53.24 | AG42: FAN | AH42: Wt | AI42: MTR | AJ42: Wt | AM42: J | AN42: 45 | AO42: 50 | AQ42: J1 | AR42: 500 | AS42: 235 | AU42: A2 | AV42: 200 | AW42: 0 | AZ42: J | BA42: 606 | BB42: 540
C43: Length = | D43: =IF($J$4="000",INDEX($BT$46:$BU$89,MATCH($B$5,BS46:BS89,0),MATCH($D$40,$BT$45:$BU$45,0)),INDEX($BW$46:$BX$89,MATCH($B$5,BS46:BS89,0),MATCH($D$40,$BW$45:$BX$45,0))) -> 132 | E43: Width = | F43: =IF($J$4="000",H43+INDEX($BT$46:$BV$89,MATCH($B$5,BS46:BS89,0),MATCH($E$40,$BT$45:$BV$45,0)),INDEX($BW$46:$BY$89,MATCH($B$5,BS46:BS89,0),MATCH($E$40,$BW$45:$BY$45,0))) -> 88 | H43: 0 | U43: B | V43: 18 | W43: 38 | X43: 20 | Z43: BF | AA43: 18 | AB43: 62.92 | AC43: BF | AD43: 18 | AE43: 62.92 | AG43: 10 | AH43: 6 | AI43: 1 | AJ43: 34 | AM43: K | AN43: 50 | AO43: 55 | AQ43: K1 | AR43: 600 | AS43: 255 | AU43: B2 | AV43: 400 | AW43: 0 | AZ43: K | BA43: 664 | BB43: 540 | BJ43: Cond. Dims | BS43: Cabinet Outside Dims
A44: Unit Type | B44: Unit Size | C44: Move XYZ--> | D44: 0 | E44: 0 | F44: 0 | U44: C | V44: 17.75 | W44: 38 | X44: 20 | Z44: BG | AA44: 20 | AB44: 82.28 | AC44: BG | AD44: 20 | AE44: 82.28 | AG44: 11 | AH44: 6 | AI44: 1.5 | AJ44: 37.5 | AM44: L | AN44: 55 | AO44: 60 | AQ44: A2 | AR44: 2x100 | AS44: 150 | AU44: C2 | AV44: 500 | AW44: 0 | AZ44: L | BA44: 666 | BB44: 650 | BK44: Short | BN44: Long | BT44: Short | BW44: Long
A45: =A6 -> 0 | B45: =B6 -> 0 | C45: Move L--> | D45: 0 | E45: Move W--> | F45: 0 | U45: K | V45: 17.75 | W45: 38 | X45: 20 | Z45: BH | AA45: 22 | AB45: 106.48 | AC45: BH | AD45: 22 | AE45: 106.48 | AG45: 12 | AH45: 6 | AI45: 2 | AJ45: 40 | AM45: M | AN45: 60 | AO45: 70 | AQ45: B2 | AR45: 2x200 | AS45: 246 | AU45: D2 | AV45: 600 | AW45: 0 | AZ45: M | BA45: 706 | BB45: 700 | BK45: X | BL45: Y | BM45: Z | BN45: X | BO45: Y | BP45: Z | BT45: X | BU45: Y | BV45: Wi | BW45: X | BX45: Y | BY45: Wi
A46: Shipping Corner Weight | D46: Operating Corner Weight | U46: D | V46: 36 | W46: 48 | X46: 25 | Z46: BJ | AA46: 25 | AB46: 145.2 | AC46: BJ | AD46: 25 | AE46: 145.2 | AG46: 14 | AH46: 9 | AI46: 3 | AJ46: 69 | AM46: N | AN46: 70 | AO46: 80 | AQ46: C2 | AR46: 2x250 | AS46: 500 | AU46: E2 | AV46: 800 | AW46: 0 | AZ46: N | BA46: 724 | BB46: 670 | BJ46: a0 | BK46: 0 | BL46: 0 | BM46: 0 | BN46: 0 | BO46: 0 | BP46: 0 | BS46: a0 | BT46: 65 | BU46: 64 | BV46: 446 | BW46: 100 | BX46: 64 | BY46: 637
B47: lbs | C47: (kg) | E47: lbs | F47: (kg) | U47: E | V47: 25 | W47: 60 | X47: 30 | Z47: BK | AA47: 28 | AB47: 242 | AC47: BK | AD47: 28 | AE47: 242 | AG47: 16 | AH47: 11 | AI47: 5 | AJ47: 84 | AM47: P | AN47: 80 | AO47: 90 | AQ47: D2 | AR47: 2x300 | AS47: 600 | AU47: XX | AV47: 0 | AW47: 0 | AZ47: P | BA47: 726 | BB47: 700 | BJ47: b0 | BK47: 0 | BL47: 0 | BM47: 0 | BN47: 0 | BO47: 0 | BP47: 0 | BS47: b0 | BT47: 76 | BU47: 64 | BV47: 684 | BW47: 114 | BX47: 64 | BY47: 916
A48: LF | B48: =C41*(D43-D41)/D43*(F43-E41)/F43 -> 739.0971476 | C48: =-B48/2.2046 -> -335.2522669 | D48: LF | E48: =C42*(D43-D42)/D43*(F43-E42)/F43 -> 739.0971476 | F48: =-E48/2.2046 -> -335.2522669 | G48: =B48/$C$41 -> 0.1428811134 | U48: F | V48: 18 | W48: 38 | X48: 20 | Z48: CA | AA48: ECM | AB48: 242 | AC48: CA | AD48: ECM | AE48: 242 | AG48: 18 | AH48: 13 | AI48: 7.5 | AJ48: 115 | AM48: Q | AN48: 90 | AO48: 100 | AQ48: E2 | AR48: 2x400 | AS48: 800 | AZ48: Q | BA48: 784 | BB48: 720 | BJ48: c0 | BK48: 0 | BL48: 0 | BM48: 0 | BN48: 0 | BO48: 0 | BP48: 0 | BS48: c0 | BT48: 90 | BU48: 64 | BV48: 1175 | BW48: 135 | BX48: 64 | BY48: 1551
A49: LB | B49: =C41*(D43-D41)/D43*E41/F43 -> 606.577168 | C49: =-B49/2.2046 -> -275.1415985 | D49: LB | E49: =C42*(D43-D42)/D43*E42/F43 -> 606.577168 | F49: =-E49/2.2046 -> -275.1415985 | G49: =B49/$C$41 -> 0.1172625566 | U49: G | V49: 17.75 | W49: 38 | X49: 20 | Z49: CB | AA49: ECM | AB49: 242 | AC49: CB | AD49: ECM | AE49: 242 | AG49: 20 | AH49: 17 | AI49: 10 | AJ49: 128 | AM49: R | AN49: 100 | AO49: 110 | AQ49: F2 | AR49: 2x350 | AS49: 750 | AZ49: R | BA49: 786 | BB49: 880 | BJ49: d0 | BK49: 0 | BL49: 0 | BM49: 0 | BN49: 0 | BO49: 0 | BP49: 0 | BS49: d0 | BT49: 132 | BU49: 88 | BV49: 1950 | BW49: 200 | BX49: 88 | BY49: 2944
A50: RF | B50: =C41*D41/D43*(F43-E41)/F43 -> 2102.014257 | C50: =-B50/2.2046 -> -953.4674123 | D50: RF | E50: =C42*D42/D43*(F43-E42)/F43 -> 2102.014257 | F50: =-E50/2.2046 -> -953.4674123 | G50: =B50/$C$41 -> 0.4063581335 | U50: H | V50: 36 | W50: 48 | X50: 25 | Z50: CR | AA50: ECM | AB50: 242 | AC50: CR | AD50: ECM | AE50: 242 | AG50: 22 | AH50: 22 | AI50: 15 | AJ50: 211 | AM50: S | AN50: 110 | AO50: 120 | AQ50: G2 | AR50: 2x150 | AS50: 225 | AZ50: S | BA50: 7812 | BB50: 1900 | BJ50: e0 | BK50: 0 | BL50: 0 | BM50: 0 | BN50: 0 | BO50: 0 | BP50: 0 | BS50: e0 | BT50: 150 | BU50: 100 | BV50: 4095 | BW50: 232 | BX50: 100 | BY50: 4950
A51: RB | B51: =C41*D41/D43*E41/F43 -> 1725.123496 | C51: =-B51/2.2046 -> -782.5108846 | D51: RB | E51: =C42*D42/D43*E42/F43 -> 1725.123496 | F51: =-E51/2.2046 -> -782.5108846 | G51: =B51/$C$41 -> 0.3334981966 | U51: J | V51: 25 | W51: 60 | X51: 30 | Z51: CD | AA51: ECM | AB51: 242 | AC51: CD | AD51: ECM | AE51: 242 | AG51: 25 | AH51: 30 | AI51: 20 | AJ51: 225 | AM51: T | AN51: 120 | AO51: 130 | AQ51: H2 | AR51: 2x500 | AS51: 1000 | AZ51: T | BA51: 844 | BB51: 810 | BJ51: a1 | BK51: =BT51+BQ51 -> 81 | BL51: 38 | BM51: 52 | BN51: =BW51+BQ51 -> 116 | BO51: 38 | BP51: 52 | BQ51: 16 | BS51: a1 | BT51: 65 | BU51: 64 | BV51: 446 | BW51: 100 | BX51: 64 | BY51: 637 | CA51: =BQ51*2 -> 32
Z52: CE | AA52: ECM | AB52: 242 | AC52: CE | AD52: ECM | AE52: 242 | AG52: 28 | AH52: 50 | AI52: 25 | AJ52: 250 | AM52: U | AN52: 130 | AO52: 140 | AQ52: A4 | AR52: 4x200 | AS52: 1000 | AZ52: U | BA52: 846 | BB52: 1050 | BJ52: a2 | BK52: =BT52+BQ52 -> 90 | BL52: 38 | BM52: 52 | BN52: 125 | BO52: 38 | BP52: 52 | BQ52: 25 | BS52: a2 | BT52: 65 | BU52: 64 | BV52: 446 | BW52: 100 | BX52: 64 | BY52: 637 | CA52: =BQ52*2 -> 50
Z53: CF | AA53: ECM | AB53: 242 | AC53: CF | AD53: ECM | AE53: 242 | AG53: 32 | AH53: 59 | AI53: 30 | AJ53: 300 | AM53: V | AN53: 140 | AO53: 150 | AQ53: B4 | AR53: 4x250 | AS53: 1200 | AZ53: V | BA53: 8412 | BB53: 2250 | BJ53: b1 | BK53: =BT53+BQ53 -> 92 | BL53: 38 | BM53: 52 | BN53: 130 | BO53: 38 | BP53: 52 | BQ53: 16 | BS53: b1 | BT53: 76 | BU53: 64 | BV53: 684 | BW53: 114 | BX53: 64 | BY53: 916 | CA53: 32
U54: ECW | V54: X | W54: Y | X54: Z | Z54: CG | AA54: ECM | AB54: 242 | AC54: CG | AD54: ECM | AE54: 242 | AG54: 36 | AH54: 74 | AI54: ECM | AJ54: 1 | AM54: W | AN54: 150 | AO54: 160 | AQ54: C4 | AR54: 4x300 | AS54: 1350 | AZ54: X | BA54: 0 | BB54: 0 | BJ54: b2 | BK54: 101 | BL54: 38 | BM54: 52 | BN54: 139 | BO54: 38 | BP54: 52 | BQ54: 25 | BS54: b2 | BT54: 76 | BU54: 64 | BV54: 684 | BW54: 114 | BX54: 64 | BY54: 916 | CA54: 50
U55: A | V55: 31 | W55: 29 | X55: 32 | Z55: CH | AA55: ECM | AB55: 242 | AC55: CH | AD55: ECM | AE55: 242 | AG55: 40 | AH55: 114 | AM55: X | AN55: 0 | AO55: 0 | AQ55: D4 | AR55: 4x350 | AS55: 1450 | BJ55: b3 | BK55: 124 | BL55: 32 | BM55: 52 | BN55: 162 | BO55: 32 | BP55: 52 | BQ55: 48 | BS55: b3 | BT55: 76 | BU55: 64 | BV55: 684 | BW55: 114 | BX55: 64 | BY55: 916 | CA55: 96
B56: =B29&" "&B8&B26&" "&B9&" "&B22&" "&B21&" "&B33&B34&B35&B27&" "&VLOOKUP($B$5,$C$65:$D$108,2,FALSE)&" Cab" -> RH/SC 6-Row Evap. 18 inch FAN; 5HP D6 Cab | U56: B | V56: 34 | W56: 33 | X56: 32 | Z56: CJ | AA56: ECM | AB56: 242 | AC56: CJ | AD56: ECM | AE56: 242 | AQ56: E4 | AR56: 4x400 | AS56: 1600 | BJ56: b4 | BK56: 112 | BL56: 32 | BM56: 75 | BN56: 150 | BO56: 32 | BP56: 75 | BQ56: 36 | BS56: b4 | BT56: 76 | BU56: 64 | BV56: 684 | BW56: 114 | BX56: 64 | BY56: 916 | CA56: 72
B57: =B4 -> LCOA | C57: Shipping Weight | D57: Operating Weight | E57: Center of Gravity | H57: Corner Weights | U57: C | V57: 40 | W57: 33 | X57: 33 | Z57: CK | AA57: ECM | AB57: 242 | AC57: CK | AD57: ECM | AE57: 242 | AM57: HWC H2O | AQ57: J2 | AR57: 2x600 | AS57: 1200 | BJ57: c2 | BK57: 109 | BL57: 38 | BM57: 60 | BN57: 154 | BO57: 38 | BP57: 60 | BQ57: 19 | BS57: c2 | BT57: 90 | BU57: 64 | BV57: 1175 | BW57: 135 | BX57: 64 | BY57: 1551 | CA57: 38
C58: lbs (kg) | D58: lbs (kg) | E58: X | F58: Y | G58: Z | H58: LF | I58: LB | J58: RF | K58: RB | U58: K | V58: 40 | W58: 33 | X58: 33 | Z58: CL | AA58: ECM | AB58: 242 | AC58: CL | AD58: ECM | AE58: 242 | AM58: 36 | AN58: 19.28 | BJ58: c3 | BK58: 138 | BL58: 32 | BM58: 60 | BN58: 183 | BO58: 32 | BP58: 60 | BQ58: 48 | BS58: c3 | BT58: 90 | BU58: 64 | BV58: 1175 | BW58: 135 | BX58: 64 | BY58: 1551 | CA58: 96
B59: =IF(C4>96,C4,"0"&C4) -> 360 | C59: =MROUND(C41,10) -> 5170 | D59: =MROUND(C42,10) -> 5170 | E59: =D41 -> 97.66103556 | F59: =E41 -> 39.66694628 | G59: =F41 -> 62.26886583 | H59: =MROUND(E48,10) -> 740 | I59: =MROUND(E49,10) -> 610 | J59: =MROUND(E50,10) -> 2100 | K59: =MROUND(E51,10) -> 1730 | L59: =SUM(H59:K59) -> 5180 | U59: D | V59: 60 | W59: 44 | X59: 45 | Z59: CM | AA59: ECM | AB59: 242 | AC59: CM | AD59: ECM | AE59: 242 | AM59: 48 | AN59: 19.28 | AQ59: A1 = 75 MBH | BJ59: c4 | BK59: 126 | BL59: 32 | BM59: 75 | BN59: 171 | BO59: 32 | BP59: 75 | BQ59: 36 | BS59: c4 | BT59: 90 | BU59: 64 | BV59: 1175 | BW59: 135 | BX59: 64 | BY59: 1551 | CA59: 72
C60: =C59*0.453*-1 -> -2342.01 | D60: =-D59*0.453 -> -2342.01 | E60: =-E59*25.4 -> -2480.590303 | F60: =-F59*25.4 -> -1007.540435 | G60: =-G59*25.4 -> -1581.629192 | H60: =-H59*0.453 -> -335.22 | I60: =-I59*0.453 -> -276.33 | J60: =-J59*0.453 -> -951.3 | K60: =-K59*0.453 -> -783.69 | U60: E | V60: 75 | W60: 60 | X60: 54 | Z60: CN | AA60: ECM | AB60: 242 | AC60: CN | AD60: ECM | AE60: 242 | AM60: 60 | AN60: 19.28 | AQ60: B1 = 100 MBH | BJ60: c6 | BK60: 139 | BL60: 32 | BM60: 75 | BN60: 184 | BO60: 32 | BP60: 75 | BQ60: 49 | BS60: c6 | BT60: 90 | BU60: 64 | BV60: 1175 | BW60: 135 | BX60: 64 | BY60: 1551 | CA60: 98
B61: * Corner weights along the main cabinet. | F61: ="Approx. Main Cabinet LXW:"&" "&CEILING(D43,5)&" X "&F43 -> Approx. Main Cabinet LXW: 135 X 88 | K61: =TODAY() -> 2017-07-07 | U61: F | V61: 34 | W61: 33 | X61: 32 | Z61: CP | AA61: ECM | AB61: 242 | AC61: CP | AD61: ECM | AE61: 242 | AM61: 72 | AN61: 22.76 | AQ61: C1 = 150 MBH | BJ61: k5 | BK61: =BT61+BQ61 -> 146 | BL61: 32 | BM61: 75 | BN61: =BW61+BQ61 -> 189 | BO61: 32 | BP61: 75 | BQ61: 36 | BS61: k5 | BT61: 110 | BU61: 64 | BV61: 1375 | BW61: =BW58+18 -> 153 | BX61: 64 | BY61: 1775 | CA61: 72
U62: G | V62: 40 | W62: 33 | X62: 33 | Z62: CQ | AA62: ECM | AB62: 242 | AC62: CQ | AD62: ECM | AE62: 242 | AM62: 84 | AN62: 26 | AQ62: D1 = 200 MBH | BJ62: k4 | BK62: =BT62+BQ62 -> 146 | BL62: 32 | BM62: 75 | BN62: =BW62+BQ62 -> 189 | BO62: 32 | BP62: 75 | BQ62: 36 | BS62: k4 | BT62: 110 | BU62: 64 | BV62: 1375 | BW62: 153 | BX62: 64 | BY62: 1775 | CA62: 72
U63: H | V63: 60 | W63: 44 | X63: 45 | Z63: DA | AA63: Dual ECM | AB63: 484 | AC63: DA | AD63: Dual ECM | AE63: 484 | AM63: 96 | AN63: 30.44 | AQ63: E1 = 250 MBH | AZ63: 0= None | BJ63: k6 | BK63: =BT63+BQ63 -> 159 | BL63: 32 | BM63: 75 | BN63: =BW62+BQ62 -> 189 | BO63: 32 | BP63: 75 | BQ63: 49 | BS63: k6 | BT63: 110 | BU63: 64 | BV63: 1375 | BW63: 153 | BX63: 64 | BY63: 1775 | CA63: 98
U64: J | V64: 75 | W64: 60 | X64: 54 | Z64: DB | AA64: Dual ECM | AB64: 484 | AC64: DB | AD64: Dual ECM | AE64: 484 | AM64: 120 | AN64: 31.88 | AQ64: F1 = 300 MBH | AZ64: A= ECW 244 w/2" filters | BJ64: d4 | BK64: 168 | BL64: 44 | BM64: 75 | BN64: =BW64+BQ64 -> 236 | BO64: 44 | BP64: 75 | BQ64: 36 | BS64: d4 | BT64: 132 | BU64: 88 | BV64: 1950 | BW64: 200 | BX64: 88 | BY64: 2944 | CA64: 72
C65: A0 | D65: A0 | E65: AL | F65: RHX1 | Z65: DC | AA65: Dual ECM | AB65: 484 | AC65: DC | AD65: Dual ECM | AE65: 484 | AM65: 150 | AN65: 36.92 | AQ65: G1 = 350 MBH | AZ65: B= ECW 324 w/2" filters | BJ65: d6 | BK65: 181 | BL65: 44 | BM65: 75 | BN65: =BW65+BQ65 -> 249 | BO65: 44 | BP65: 75 | BQ65: 49 | BS65: d6 | BT65: 132 | BU65: 88 | BV65: 1950 | BW65: 200 | BX65: 88 | BY65: 2944 | CA65: 98
C66: B0 | D66: B0 | E66: AM | F66: RHx2 | Z66: DD | AA66: Dual ECM | AB66: 484 | AC66: DD | AD66: Dual ECM | AE66: 484 | AM66: 180 | AN66: 48.52 | AQ66: H1 = 400 MBH | AZ66: C= ECW 364 w/2" filters | BJ66: d8 | BK66: 191 | BL66: 44 | BM66: 75 | BN66: =BW66+BQ66 -> 259 | BO66: 44 | BP66: 75 | BQ66: 59 | BS66: d8 | BT66: 132 | BU66: 88 | BV66: 1950 | BW66: 200 | BX66: 88 | BY66: 2944 | CA66: 118
C67: C0 | D67: C0 | E67: AN | F67: SCx1 | P67: Comp1 | Q67: X | R67: Y | S67: Z | U67: Comp1 | V67: X | W67: Y | X67: Z | Z67: DE | AA67: Dual ECM | AB67: 484 | AC67: DE | AD67: Dual ECM | AE67: 484 | AM67: 210 | AN67: 52.28 | AQ67: J1 = 500 MBH | AZ67: D= ECW 424 w/2" filters | BJ67: d9 | BK67: 191 | BL67: 44 | BM67: 75 | BN67: =BW67+BQ67 -> 259 | BO67: 44 | BP67: 75 | BQ67: 59 | BS67: d9 | BT67: 132 | BU67: 88 | BV67: 1950 | BW67: 200 | BX67: 88 | BY67: 2944 | CA67: 118
C68: D0 | D68: D0 | E68: BC | F68: RHx1 | P68: A | Q68: 52 | R68: 9 | S68: 17 | U68: A | V68: 88 | W68: 9 | X68: 17 | Z68: DF | AA68: Dual ECM | AB68: 484 | AC68: DF | AD68: Dual ECM | AE68: 484 | AM68: 240 | AN68: 57.48 | AQ68: K1 = 600 MBH | AZ68: E= ECW 484 w/2" filters | BJ68: e6 | BK68: 199 | BL68: 50 | BM68: 90 | BN68: =BW68+BQ68 -> 281 | BO68: 50 | BP68: 90 | BQ68: 49 | BS68: e6 | BT68: 150 | BU68: 100 | BV68: 5000 | BW68: 232 | BX68: 100 | BY68: 6300 | CA68: 98
C69: E0 | D69: E0 | E69: BD | F69: SCx1 | P69: B | Q69: 53 | R69: 9.5 | S69: 17 | U69: B | V69: 91 | W69: 9 | X69: 17 | Z69: DG | AA69: Dual ECM | AB69: 484 | AC69: DG | AD69: Dual ECM | AE69: 484 | AM69: 300 | AN69: 76.56 | AQ69: A2 = 100+100 MBH | AZ69: F= ECW 486 w/2" filters | BJ69: e8 | BK69: 209 | BL69: 50 | BM69: 90 | BN69: 291 | BO69: 50 | BP69: 90 | BQ69: 59 | BS69: e8 | BT69: 150 | BU69: 100 | BV69: 5000 | BW69: 232 | BX69: 100 | BY69: 6300 | CA69: 118
C70: A1 | D70: A1 | E70: BG | F70: RHx1 | P70: C | Q70: 65 | R70: 9 | S70: 17 | U70: C | V70: 104 | W70: 9 | X70: 17 | Z70: DH | AA70: Dual ECM | AB70: 484 | AC70: DH | AD70: Dual ECM | AE70: 484 | AM70: 360 | AN70: 76.56 | AQ70: G2 = 150+150 MBH | AZ70: G= ECW 544 w/2" filters | BJ70: e9 | BK70: 209 | BL70: 50 | BM70: 90 | BN70: =BW70+BQ70 -> 291 | BO70: 50 | BP70: 90 | BQ70: 59 | BS70: e9 | BT70: 150 | BU70: 100 | BV70: # | BW70: 232 | BX70: 100 | BY70: # | CA70: 118
C71: A2 | D71: A2 | E71: BH | F71: SCx1 | P71: K | Q71: 85 | R71: 9 | S71: 17 | U71: C | V71: 124 | W71: 9 | X71: 17 | Z71: DK | AA71: Dual ECM | AB71: 484 | AC71: DK | AD71: Dual ECM | AE71: 484 | AM71: 420 | AN71: 81.76 | AQ71: B2 = 200+200 MBH | AZ71: H= ECW 604 w/2" filters | BJ71: f1 | BK71: 126 | BL71: 38 | BM71: 52 | BN71: =BW71+BQ71 -> 163 | BO71: 38 | BP71: 52 | BQ71: 16 | BS71: f1 | BT71: 110 | BU71: 64 | BV71: 958 | BW71: 147 | BX71: 64 | BY71: 1190 | CA71: 32
C72: B1 | D72: B1 | E72: CC | F72: RHx2 | P72: D | Q72: 97 | R72: 12 | S72: 32 | U72: D | V72: 164 | W72: 12 | X72: 32 | Z72: EA | AA72: 2x14" | AB72: 39.6 | AC72: EA | AD72: 2x14" | AE72: 87.12 | AM72: 480 | AN72: 91 | AQ72: C2 = 250+250 MBH | AZ72: J= ECW 606 w/2" filters | BJ72: f2 | BK72: 135 | BL72: 38 | BM72: 52 | BN72: 172 | BO72: 38 | BP72: 52 | BQ72: 25 | BS72: f2 | BT72: 110 | BU72: 64 | BV72: 958 | BW72: 147 | BX72: 64 | BY72: 1190 | CA72: 50
C73: B2 | D73: B2 | E73: CD | F73: SCx1 | P73: E | Q73: 93 | R73: 40 | S73: 32 | U73: E | V73: 185 | W73: 20 | X73: 32 | Z73: EB | AA73: 2x14" | AB73: 39.6 | AC73: EB | AD73: 2x14" | AE73: 87.12 | AM73: 540 | AN73: 101 | AQ73: D2 = 300+300 MBH | AZ73: K= ECW 664 w/2" filters | BJ73: f3 | BK73: 158 | BL73: 32 | BM73: 52 | BN73: 195 | BO73: 32 | BP73: 52 | BQ73: 48 | BS73: f3 | BT73: 110 | BU73: 64 | BV73: 958 | BW73: 147 | BX73: 64 | BY73: 1190 | CA73: 96
C74: B3 | D74: B3 | E74: CH | F74: RHx2 | P74: F | Q74: 53 | R74: 9.5 | S74: 17 | U74: F | V74: 91 | W74: 9 | X74: 17 | Z74: EC | AA74: 2x16" | AB74: 48.4 | AC74: EC | AD74: 2x16" | AE74: 106.48 | AM74: 600 | AN74: 111 | AQ74: F2 = 350+350 MBH | AZ74: L= ECW 666 w/2" filters | BJ74: f4 | BK74: 146 | BL74: 32 | BM74: 75 | BN74: 183 | BO74: 32 | BP74: 75 | BQ74: 36 | BS74: f4 | BT74: 110 | BU74: 64 | BV74: 958 | BW74: 147 | BX74: 64 | BY74: 1190 | CA74: 72
C75: B4 | D75: B4 | E75: CJ | F75: SCx1 | P75: G | Q75: 65 | R75: 9 | S75: 17 | U75: G | V75: 104 | W75: 9 | X75: 17 | Z75: ED | AA75: 2x16" | AB75: 48.4 | AC75: ED | AD75: 2x16" | AE75: 106.48 | AM75: 660 | AN75: 121 | AQ75: E2 = 400+400 MBH | AZ75: M= ECW 706 w/2" filters | BJ75: g2 | BK75: 161 | BL75: 38 | BM75: 60 | BN75: 206 | BO75: 38 | BP75: 60 | BQ75: 19 | BS75: g2 | BT75: 142 | BU75: 64 | BV75: 1582 | BW75: 187 | BX75: 64 | BY75: 1958 | CA75: 38
C76: C2 | D76: C2 | E76: DA | F76: SCx1 | P76: H | Q76: 97 | R76: 12 | S76: 32 | U76: H | V76: 164 | W76: 12 | X76: 32 | Z76: EE | AA76: 2x18" | AB76: 57.2 | AC76: EE | AD76: 2x18" | AE76: 125.84 | AM76: 720 | AN76: =4057*0.04 -> 162.28 | AQ76: H2 = 500+500MBH | AZ76: N= ECW 724 w/2" filters | BJ76: g3 | BK76: 190 | BL76: 32 | BM76: 60 | BN76: 235 | BO76: 32 | BP76: 60 | BQ76: 48 | BS76: g3 | BT76: 142 | BU76: 64 | BV76: 1582 | BW76: 187 | BX76: 64 | BY76: 1958 | CA76: 96
C77: C3 | D77: C3 | E77: DB | F77: SCx1 | P77: J | Q77: 100 | R77: 20 | S77: 32 | U77: J | V77: 185 | W77: 20 | X77: 32 | Z77: EF | AA77: 2x18" | AB77: 57.2 | AC77: EF | AD77: 2x18" | AE77: 125.84 | AM77: 780 | AN77: 162 | AQ77: J2 = 600+600MBH | AZ77: P= ECW 702 w/2" filters | BJ77: g4 | BK77: 178 | BL77: 32 | BM77: 75 | BN77: 223 | BO77: 32 | BP77: 75 | BQ77: 36 | BS77: g4 | BT77: 142 | BU77: 64 | BV77: 1582 | BW77: 187 | BX77: 64 | BY77: 1958 | CA77: 72
C78: C4 | D78: C4 | E78: DC | F78: RH/SC | Z78: EG | AA78: 2x20" | AB78: 74.8 | AC78: EG | AD78: 2x20" | AE78: 164.56 | AM78: 840 | AN78: 162 | AQ78: A4 = (4) 200 MBH | AZ78: Q= ECW 784 w/2" filters | BJ78: g6 | BK78: 191 | BL78: 32 | BM78: 75 | BN78: 236 | BO78: 32 | BP78: 75 | BQ78: 49 | BS78: g6 | BT78: 142 | BU78: 64 | BV78: 1582 | BW78: 187 | BX78: 64 | BY78: 1958 | CA78: 98
C79: C6 | D79: C6 | E79: DD | F79: SCx1 | Z79: EH | AA79: 2x20" | AB79: 74.8 | AC79: EH | AD79: 2x20" | AE79: 164.56 | AQ79: B4 = (4) 250 MBH | AZ79: R= ECW 786 w/2" filters | BJ79: h4 | BK79: 238 | BL79: 44 | BM79: 75 | BN79: 305 | BO79: 44 | BP79: 75 | BQ79: 36 | BS79: h4 | BT79: 202 | BU79: 88 | BV79: 3017 | BW79: 269 | BX79: 88 | BY79: 4067 | CA79: 72
C80: K5 | D80: C+2OS | E80: DE | F80: SCx1 | P80: Comp2 | Q80: X | R80: Y | S80: Z | U80: Comp2 | V80: X | W80: Y | X80: Z | Z80: XX | AA80: 0 | AB80: 0 | AC80: XX | AD80: 0 | AE80: 0 | AQ80: C4 = (4) 300 MBH | AZ80: S= ECW 7812 w/2" filters | BJ80: h6 | BK80: 251 | BL80: 44 | BM80: 75 | BN80: 318 | BO80: 44 | BP80: 75 | BQ80: 49 | BS80: h6 | BT80: 202 | BU80: 88 | BV80: 3017 | BW80: 269 | BX80: 88 | BY80: 4067 | CA80: 98
C81: K4 | D81: C+4 | E81: DF | F81: SCx1 | P81: A | Q81: 0 | R81: 0 | S81: 0 | U81: A | V81: 0 | W81: 0 | X81: 0 | AQ81: D4 = (4) 350 MBH | AZ81: T= ECW 844 w/2" filters | BJ81: h8 | BK81: 261 | BL81: 44 | BM81: 75 | BN81: 328 | BO81: 44 | BP81: 75 | BQ81: 59 | BS81: h8 | BT81: 202 | BU81: 88 | BV81: 3017 | BW81: 269 | BX81: 88 | BY81: 4067 | CA81: 118
C82: K6 | D82: C+6 | E82: DG | F82: SCx1 | P82: B | Q82: 63 | R82: 9.5 | S82: 17 | U82: B | V82: 101 | W82: 9 | X82: 17 | AQ82: E4 = (4) 400 MBH | AZ82: U= ECW 846 w/2" filters | BJ82: h9 | BK82: 261 | BL82: 44 | BM82: 75 | BN82: =BW82+BQ82 -> 328 | BO82: 44 | BP82: 75 | BQ82: 59 | BS82: h9 | BT82: 202 | BU82: 88 | BV82: 3017 | BW82: 269 | BX82: 88 | BY82: 4067 | CA82: 118
C83: D4 | D83: D4 | E83: DH | F83: RH/SC | P83: C | Q83: 78 | R83: 9 | S83: 17 | U83: C | V83: 120 | W83: 9 | X83: 19 | AZ83: V= ECW 8412 w/2" filters | BJ83: j6 | BK83: 250 | BL83: 50 | BM83: 90 | BN83: =BW83+BQ83 -> 333 | BO83: 50 | BP83: 90 | BQ83: 49 | BS83: j6 | BT83: 201 | BU83: 100 | BV83: 5000 | BW83: 284 | BX83: 100 | BY83: 6300 | CA83: 98
C84: D6 | D84: D6 | E84: DJ | F84: SCx1 | P84: K | Q84: 98 | R84: 9 | S84: 17 | U84: C | V84: 140 | W84: 9 | X84: 19 | AZ84: X= Applied Special | BJ84: j8 | BK84: 260 | BL84: 50 | BM84: 90 | BN84: =BW84+BQ84 -> 343 | BO84: 50 | BP84: 90 | BQ84: 59 | BS84: j8 | BT84: 201 | BU84: 100 | BV84: 5000 | BW84: 284 | BX84: 100 | BY84: 6300 | CA84: 118
C85: D8 | D85: D8 | E85: DK | F85: SCx1 | P85: D | Q85: 113 | R85: 12 | S85: 32 | U85: D | V85: 180 | W85: 12 | X85: 32 | BJ85: j9 | BK85: 260 | BL85: 50 | BM85: 90 | BN85: =BW85+BQ85 -> 343 | BO85: 50 | BP85: 90 | BQ85: 59 | BS85: j9 | BT85: 201 | BU85: 100 | BV85: 5150 | BW85: 284 | BX85: 100 | BY85: 6450 | CA85: 118
C86: D9 | D86: D6 | P86: E | Q86: 130 | R86: 40 | S86: 32 | U86: E | V86: 185 | W86: 20 | X86: 32 | BJ86: F0 | BK86: 0 | BL86: 0 | BM86: 0 | BN86: 0 | BO86: 0 | BP86: 0 | BS86: F0 | BT86: 110 | BU86: 64 | BV86: 958 | BW86: 147 | BX86: 64 | BY86: 1190
C87: E6 | D87: E6 | P87: F | Q87: =Q82+12 -> 75 | R87: 9.5 | S87: 17 | U87: F | V87: =V82+12 -> 113 | W87: 9 | X87: 17 | BJ87: G0 | BK87: 0 | BL87: 0 | BM87: 0 | BN87: 0 | BO87: 0 | BP87: 0 | BS87: G0 | BT87: 142 | BU87: 64 | BV87: 1582 | BW87: 187 | BX87: 64 | BY87: 1958
C88: E8 | D88: E8 | P88: G | Q88: =Q83+18 -> 96 | R88: 9 | S88: 17 | U88: G | V88: =V83+18 -> 138 | W88: 9 | X88: 19 | BJ88: H0 | BK88: 0 | BL88: 0 | BM88: 0 | BN88: 0 | BO88: 0 | BP88: 0 | BS88: H0 | BT88: 202 | BU88: 88 | BV88: 3017 | BW88: 269 | BX88: 88 | BY88: 4067
C89: E9 | D89: E6 | P89: H | Q89: =Q85+24 -> 137 | R89: 12 | S89: 32 | U89: H | V89: =V85+24 -> 204 | W89: 12 | X89: 32 | BJ89: J0 | BK89: 0 | BL89: 0 | BM89: 0 | BN89: 0 | BO89: 0 | BP89: 0 | BS89: J0 | BT89: 201 | BU89: 100 | BV89: 5000 | BW89: 284 | BX89: 100 | BY89: 6300
C90: F1 | D90: B1XL | P90: J | Q90: 180 | R90: 20 | S90: 32 | U90: J | V90: 260 | W90: 20 | X90: 32
C91: F2 | D91: B2XL
C92: F3 | D92: B3XL
C93: F4 | D93: B4XL | P93: WC | Q93: X | R93: Y | S93: Z | U93: WC | V93: X | W93: Y | X93: Z
C94: G2 | D94: C2XL | P94: A | Q94: 70 | R94: 14 | S94: 35 | U94: A | V94: 105 | W94: 14 | X94: 37
C95: G3 | D95: C3XL | P95: B | Q95: 82 | R95: 13 | S95: 43 | U95: B | V95: 119 | W95: 13 | X95: 43
C96: G4 | D96: C4XL | P96: C | Q96: 96.25 | R96: 21.5 | S96: 44.5 | U96: C | V96: 140.5 | W96: 21 | X96: 45
C97: G6 | D97: C6XL | P97: K | Q97: 106.25 | R97: 21.5 | S97: 44.5 | U97: C | V97: 161 | W97: 21 | X97: 45
C98: H4 | D98: D4XL | P98: D | Q98: 148 | R98: 44 | S98: 45 | U98: D | V98: 215 | W98: 44 | X98: 45
C99: H6 | D99: D6XL | P99: E | Q99: 182 | R99: 64 | S99: 45 | U99: E | V99: 268 | W99: 64 | X99: 45
C100: H8 | D100: D8XL | P100: F | Q100: =Q94+34 -> 104 | R100: 13 | S100: 43 | U100: F | V100: =V95+34 -> 153 | W100: 13 | X100: 43
C101: H9 | D101: D6XL | P101: G | Q101: =Q96+52 -> 148.25 | R101: 21.5 | S101: 44.5 | U101: G | V101: =V96+52 -> 192.5 | W101: 21 | X101: 45
C102: J6 | D102: E6XL | P102: H | Q102: =Q98+60 -> 208 | R102: 44 | S102: 45 | U102: H | V102: =V98+60 -> 275 | W102: 44 | X102: 45
C103: J8 | D103: E8XL | P103: J | Q103: 240 | R103: 64 | S103: 45 | U103: J | V103: 320 | W103: 64 | X103: 45
C104: J9 | D104: E6XL
C105: F0 | D105: BXL
C106: G0 | D106: CXL | P106: SheetMetal Short | Q106: X | R106: Y | S106: Z | U106: SheetMetal Long | V106: X | W106: Y | X106: Z
C107: H0 | D107: DXL | P107: A | Q107: 36 | R107: 32 | S107: 45 | U107: A | V107: 60 | W107: 32 | X107: 45
C108: J0 | D108: EXL | P108: B | Q108: 38 | R108: 32 | S108: 45 | U108: B | V108: 70 | W108: 32 | X108: 45
P109: C | Q109: 38 | R109: 32 | S109: 45 | U109: C | V109: 80 | W109: 32 | X109: 45
P110: K | Q110: 58 | R110: 32 | S110: 45 | U110: C | V110: 100 | W110: 32 | X110: 45
P111: D | Q111: 55 | R111: 44 | S111: 65 | U111: D | V111: 118 | W111: 44 | X111: 65
P112: E | Q112: 75 | R112: 65 | S112: 77 | U112: E | V112: 100 | W112: 65 | X112: 77 | AB112: XL Dims from DAVE
P113: F | Q113: 55 | R113: 32 | S113: 45 | U113: F | V113: 87 | W113: 32 | X113: 45 | AB113: XL Furnace | AC113: X | AD113: Y | AE113: Z | AG113: LBS
P114: G | Q114: 64 | R114: 32 | S114: 45 | U114: G | V114: 106 | W114: 32 | X114: 45 | AB114: A | AC114: # | AD114: # | AE114: # | AG114: #
P115: H | Q115: 86 | R115: 44 | S115: 45 | U115: H | V115: 153 | W115: 44 | X115: 45 | AB115: B | AC115: 35 | AD115: 64 | AE115: 64 | AF115: 3.3 | AG115: =AC115*AD115*AE115/1728*AF115 -> 273.7777778
P116: J | Q116: 102 | R116: 65 | S116: 77 | U116: J | V116: 160 | W116: 65 | X116: 77 | AB116: C | AC116: 52 | AD116: 64 | AE116: 64 | AF116: 3.3 | AG116: =AC116*AD116*AE116/1728*AF116 -> 406.7555556
AB117: D | AC117: 68.5 | AD117: 88 | AE117: 92 | AF117: 3.5 | AG117: =AC117*AD117*AE117/1728*AF117 -> 1123.273148
AB118: E | AC118: 72 | AD118: 100 | AE118: 108 | AF118: 3.5 | AG118: =AC118*AD118*AE118/1728*AF118 -> 1575
P119: Furnace Short | Q119: X | R119: Y | S119: Z | U119: Furnace Long | V119: X | W119: Y | X119: Z
P120: A | Q120: 51 | R120: 45 | S120: 43 | U120: A | V120: 87 | W120: 45 | X120: 40
E121: 1 | F121: 2 | G121: 3 | P121: B | Q121: 53 | R121: 45 | S121: 43 | U121: B | V121: 95 | W121: 45 | X121: 43
F122: X | G122: Y | P122: C | Q122: 65 | R122: 45 | S122: 43 | U122: C | V122: 110 | W122: 45 | X122: 43
E123: a0 | F123: 0 | G123: 0 | P123: K | Q123: 85 | R123: 45 | S123: 43 | U123: C | V123: 130 | W123: 45 | X123: 43
E124: b0 | F124: 0 | G124: 0 | P124: D | Q124: 101 | R124: 48 | S124: 46 | U124: D | V124: 171 | W124: 48 | X124: 46
E125: c0 | F125: 0 | G125: 0 | P125: E | Q125: 100 | R125: 25 | S125: 54 | U125: E | V125: 185 | W125: 58 | X125: 54
E126: d0 | F126: 0 | G126: 0 | P126: F | Q126: =Q120+AC115/2 -> 68.5 | R126: 45 | S126: 45 | U126: F | V126: =V121+AC115/2 -> 112.5 | W126: 45 | X126: 45
E127: e0 | F127: 0 | G127: 0 | P127: G | Q127: =Q121+AC116/2 -> 79 | R127: 45 | S127: 45 | U127: G | V127: =V122+AC116/2 -> 136 | W127: 45 | X127: 45
E128: a1 | F128: 32 | G128: 64 | P128: H | Q128: =Q122+AC117/2 -> 99.25 | R128: 55 | S128: 45 | U128: H | V128: =V124+AC117/2 -> 205.25 | W128: 55 | X128: 45
E129: a2 | F129: 50 | G129: 64 | P129: J | Q129: 163 | R129: 55 | S129: 54 | U129: J | V129: 245 | W129: 55 | X129: 54
E130: b1 | F130: 32 | G130: 64
E131: b2 | F131: 50 | G131: 64
E132: b3 | F132: 96 | G132: 64
E133: b4 | F133: 72 | G133: 64
E134: c2 | F134: 38 | G134: 64
E135: c3 | F135: 96 | G135: 64
E136: c4 | F136: 72 | G136: 88
E137: c6 | F137: 98 | G137: 88
E138: k5 | F138: 72 | G138: 88
E139: k4 | F139: 72 | G139: 88
E140: k6 | F140: 98 | G140: 88
E141: d4 | F141: 72 | G141: 88
E142: d6 | F142: 98 | G142: 88
E143: d8 | F143: 118 | G143: 88
E144: d9 | F144: 118 | G144: 88
E145: e6 | F145: 98 | G145: 100
E146: e8 | F146: 118 | G146: 100
E147: e9 | F147: 118 | G147: 100
E148: f1 | F148: 32 | G148: 64
E149: f2 | F149: 50 | G149: 64
E150: f3 | F150: 96 | G150: 64
E151: f4 | F151: 72 | G151: 64
E152: g2 | F152: 38 | G152: 64
E153: g3 | F153: 96 | G153: 64
E154: g4 | F154: 72 | G154: 88
E155: g6 | F155: 98 | G155: 88
E156: h4 | F156: 72 | G156: 88
E157: h6 | F157: 98 | G157: 88
E158: h8 | F158: 118 | G158: 88
E159: h9 | F159: 118 | G159: 88
E160: j6 | F160: 98 | G160: 100
E161: j8 | F161: 118 | G161: 100
E162: j9 | F162: 118 | G162: 100
E163: F0 | F163: 0 | G163: 0
E164: G0 | F164: 0 | G164: 0
E165: H0 | F165: 0 | G165: 0
E166: J0 | F166: 0 | G166: 0

Sheet Sheet1 (hidden)

Sheet Instructions
A2: 1. Get codestring from YOUR ACE PROJECT Schedule OR PRICING SCREEN
A49: 2. Double click the yellow cell.
A81: 3. Paste codestring and press ENTER
